Body Name,Body,Service Level,Expense Type,Expense Code,Narrative,Date,Transaction Number,Amount,Capital and Revenue,Supplier Name,Supplier ID
South Ribble Council,http://statistics.data.gov.uk/doc/local-authority/30UN,Housing,Cap Grant- Improve Grants,C570,DFG WORKS TO RAMP ACCESS AT ADDRESS REDACTED AS PER QUOTE SUPPLIED OF 4050.38 TOTAL GRANT COST 4050.38,03/04/2020,0000454043,"4,050.38",Revenue,ABS Building Services,133038
South Ribble Council,http://statistics.data.gov.uk/doc/local-authority/30UN,Housing,Contractors Charges 5,5313,void loss,09/04/2020,0000454533,"2,141.37",Revenue,ACCENT FOUNDATION,00015820
South Ribble Council,http://statistics.data.gov.uk/doc/local-authority/30UN,Information Services,Peripherals,4248,cancelled by credit note,07/04/2020,0000454044,"19,344.39",Revenue,Access Group Ltd,132303
South Ribble Council,http://statistics.data.gov.uk/doc/local-authority/30UN,HR & Communications,Peripherals,4241,"25 x HP 250 G7 i5 8265U 8GB 256GB W10 Home @ 585.00 each, plus delivery @ 6.50, as per quote",07/04/2020,0000454046,"14,625.00",Revenue,ACS SYSTEMS UK LTD,00070166
South Ribble Council,http://statistics.data.gov.uk/doc/local-authority/30UN,HR & Communications,Peripherals,4241,freight,07/04/2020,0000454046,6.50,Revenue,ACS SYSTEMS UK LTD,00070166
South Ribble Council,http://statistics.data.gov.uk/doc/local-authority/30UN,Information Services,Peripherals,4241,,09/04/2020,0000454308,"11,300.00",Revenue,ACS SYSTEMS UK LTD,00070166
South Ribble Council,http://statistics.data.gov.uk/doc/local-authority/30UN,Area 2 - Waste Transport/Eastern & Central Teams,Materials General,4040,2 x water tank unions AE14 AYF JFC14367,03/04/2020,0000454041,8.36,Revenue,AEBI SCHMIDT UK LTD,00085672
South Ribble Council,http://statistics.data.gov.uk/doc/local-authority/30UN,Area 2 - Waste Transport/Eastern & Central Teams,Materials General,4040,2 x Flap strap @ 8.95  BIN 0516S,03/04/2020,0000454041,17.90,Revenue,AEBI SCHMIDT UK LTD,00085672
South Ribble Council,http://statistics.data.gov.uk/doc/local-authority/30UN,Area 2 - Waste Transport/Eastern & Central Teams,Materials General,4040,2 sets Side Skids BIN0519S,03/04/2020,0000454041,193.56,Revenue,AEBI SCHMIDT UK LTD,00085672
South Ribble Council,http://statistics.data.gov.uk/doc/local-authority/30UN,Area 2 - Waste Transport/Eastern & Central Teams,Materials General,4040,1 x Ball Joint (swing out cylinder 0230924) BIN0504S,03/04/2020,0000454041,50.74,Revenue,AEBI SCHMIDT UK LTD,00085672
South Ribble Council,http://statistics.data.gov.uk/doc/local-authority/30UN,Area 2 - Waste Transport/Eastern & Central Teams,Materials General,4040,2 x Swing out cylinder pin (12-15110215) @ 17.57 BIN0493S,03/04/2020,0000454041,35.14,Revenue,AEBI SCHMIDT UK LTD,00085672
South Ribble Council,http://statistics.data.gov.uk/doc/local-authority/30UN,Area 2 - Waste Transport/Eastern & Central Teams,Materials General,4040,Ball joint (12-15110287) BIN505S,03/04/2020,0000454041,50.38,Revenue,AEBI SCHMIDT UK LTD,00085672
South Ribble Council,http://statistics.data.gov.uk/doc/local-authority/30UN,Area 2 - Waste Transport/Eastern & Central Teams,Materials General,4040,Ball joint (12-17038021) BIN0513S,03/04/2020,0000454041,50.74,Revenue,AEBI SCHMIDT UK LTD,00085672
South Ribble Council,http://statistics.data.gov.uk/doc/local-authority/30UN,Area 2 - Waste Transport/Eastern & Central Teams,Materials General,4040,FREIGHT,03/04/2020,0000454041,15.00,Revenue,AEBI SCHMIDT UK LTD,00085672
South Ribble Council,http://statistics.data.gov.uk/doc/local-authority/30UN,Revenues Plus,Professional Fees,4520,PO fully used,07/04/2020,0000452577,500.00,Revenue,AIREY CONSULTANCY LTD T/A ACS LTD,00089212
South Ribble Council,http://statistics.data.gov.uk/doc/local-authority/30UN,Regeneration,Capital Expenditure,C230,Works for New Shruggs Wood invoice date 47450 dated 16.3.2020 as per NAME REDACTED,22/04/2020,0000453993,"36,848.20",Revenue,ALBEN LANDSCAPES,00105921
South Ribble Council,http://statistics.data.gov.uk/doc/local-authority/30UN,Area 3 - Parks/Leyland East West,Grounds Maint Cntrctrs Chgs,4657,REPLACEMENT OF EASTERN SECTION OF GUTTER AND ASSOCIATED ROOF WORKS,07/04/2020,0000454232,"1,800.00",Revenue,Alitex Ltd,132080
South Ribble Council,http://statistics.data.gov.uk/doc/local-authority/30UN,Area 3 - Parks/Leyland East West,Capital Expenditure,C230,Replacement of existing display house. (Timber frame with aluminium messenger frame),07/04/2020,0000454362,"6,032.50",Revenue,Alitex Ltd,132080
South Ribble Council,http://statistics.data.gov.uk/doc/local-authority/30UN,Revenues Plus,Financial,4811,post office,07/04/2020,0000454331,520.12,Revenue,ALLPAY LTD,00122276
South Ribble Council,http://statistics.data.gov.uk/doc/local-authority/30UN,Revenues Plus,Financial,4811,paypoint,07/04/2020,0000454331,64.00,Revenue,ALLPAY LTD,00122276
South Ribble Council,http://statistics.data.gov.uk/doc/local-authority/30UN,Revenues Plus,Financial,4811,webconn,07/04/2020,0000454331,46.00,Revenue,ALLPAY LTD,00122276
South Ribble Council,http://statistics.data.gov.uk/doc/local-authority/30UN,Healthy Communities,Other Misc,4851,Please carry out work for Leisure Centre Investment as per NAME REDACTED Instruction,22/04/2020,0000453354,"4,800.00",Revenue,Anderton Gables Ltd,133021
South Ribble Council,http://statistics.data.gov.uk/doc/local-authority/30UN,Democratic Services,Other Misc,4421,"Use of THE PRIORY CLUB, LEYLAND for the Parliamentary Election on 12 December 2019.  ",17/04/2020,0000455472,480.00,Revenue,APCMC LTD,130995
South Ribble Council,http://statistics.data.gov.uk/doc/local-authority/30UN,Housing,Cap Grant- Improve Grants,C570,DFG WORKS TO BATHROOM WORK AT ADDRESS REDACTED AS PER QUOTE SUPPLIED OF 4562.50 TOTAL GRANT COST 4562.50,09/04/2020,0000454462,"4,562.50",Revenue,APG DOMESTIC SERVICES,00061463
South Ribble Council,http://statistics.data.gov.uk/doc/local-authority/30UN,Housing,Cap Grant- Improve Grants,C570,DFG WORKS TO BATHROOM AT ADDRESS REDACTED AS PER REVISED QUOTE SUPPLIED OF 4155.00 COST 4155.00,09/04/2020,0000454463,"4,355.00",Revenue,APG DOMESTIC SERVICES,00061463
South Ribble Council,http://statistics.data.gov.uk/doc/local-authority/30UN,HR & Communications,Advertising,4848,8 hours design work for Music in the Park,17/04/2020,0000454995,320.00,Revenue,B & D PRINT SERVICES LTD,00015134
South Ribble Council,http://statistics.data.gov.uk/doc/local-authority/30UN,Area 3 - Parks/Leyland East West,Cap Vehicles,C440,COMPACT TRACTOR WITH FRONT LOADER & REAR SIDE ARM FLAIL MOWER WITH ADDITIONAL QUICK ATTACH PALLET FORKS,07/04/2020,0000453911,"50,123.00",Revenue,BALMERS GM LTD,00016023
South Ribble Council,http://statistics.data.gov.uk/doc/local-authority/30UN,Shared Financial Services,Peripherals,4248,31 mar 2020,15/04/2020,0000454662,253.48,Revenue,Barclaycard Merchant Services,132157
South Ribble Council,http://statistics.data.gov.uk/doc/local-authority/30UN,Shared Financial Services,Peripherals,4248,vat,15/04/2020,0000454662,25.00,Revenue,Barclaycard Merchant Services,132157
South Ribble Council,http://statistics.data.gov.uk/doc/local-authority/30UN,Property Services,Rep & Maint Premises,2020,Annual Contract 2019/2020Electrical Testing and Electrical  Installation Test at Higher Walton Community Centre,07/04/2020,0000453798,250.00,Revenue,BELEC ELECTRICAL LTD,130290
South Ribble Council,http://statistics.data.gov.uk/doc/local-authority/30UN,Property Services,Rep & Maint Premises,2020,Annual Contract 2019/2020 for Electrical Testing and  Electrical Installation Test Including fan  for Carr Street Community Centre,07/04/2020,0000453799,250.00,Revenue,BELEC ELECTRICAL LTD,130290
South Ribble Council,http://statistics.data.gov.uk/doc/local-authority/30UN,Property Services,Rep & Maint Premises,2020,Annual Contract 2019/2020 Electrical Testing and Electrical  Installation Test at Longton Brickcroft,07/04/2020,0000453801,323.75,Revenue,BELEC ELECTRICAL LTD,130290
South Ribble Council,http://statistics.data.gov.uk/doc/local-authority/30UN,Property Services,Rep & Maint Premises,2020,Install and hard wire 4 x fan assisted wall heaters in individual circuits breakers (mains board). Change 17 ceiling lights for LED fittings + 2 x LED,07/04/2020,0000454049,"2,355.47",Revenue,BELEC ELECTRICAL LTD,130290
South Ribble Council,http://statistics.data.gov.uk/doc/local-authority/30UN,Property Services,Rep & Maint Premises,2020,Replace 2 ceiling fittings in Unit 18F Boxer Place 2 x 15 watt circular LED ceiling lights 50,07/04/2020,0000454049,100.00,Revenue,BELEC ELECTRICAL LTD,130290
South Ribble Council,http://statistics.data.gov.uk/doc/local-authority/30UN,Property Services,Rep & Maint Premises,2020,Annual Contract 2019/2020 Electrical Testing and Electrical  Installation Test in the civic suite at the Civic Centre,07/04/2020,0000454234,400.00,Revenue,BELEC ELECTRICAL LTD,130290
South Ribble Council,http://statistics.data.gov.uk/doc/local-authority/30UN,Property Services,Rep & Maint Premises,2020,"2 x light switches and switches in fuel tank and boiler house, wire the fuel tank high level alarm system as per NAME REDACTED",07/04/2020,0000454326,527.40,Revenue,BELEC ELECTRICAL LTD,130290
South Ribble Council,http://statistics.data.gov.uk/doc/local-authority/30UN,Property Services,Rep & Maint Premises,2020,"annual testing, PO fully used per NAME REDACTED force through",17/04/2020,0000454434,450.00,Revenue,BELEC ELECTRICAL LTD,130290
South Ribble Council,http://statistics.data.gov.uk/doc/local-authority/30UN,Property Services,Rep & Maint Premises,2020,Check problems with hot water at Leyland Market - replace water heater with new one New water boiler 448.50 plumbing costs 5.40,09/04/2020,0000454440,578.90,Revenue,BELEC ELECTRICAL LTD,130290
South Ribble Council,http://statistics.data.gov.uk/doc/local-authority/30UN,Area 2 - Waste Transport/Eastern & Central Teams,External Contractors Charges,4570,SUPPLY & FIT STRIP LIGHTS TO RAMP,24/04/2020,0000455742,289.16,Revenue,BELEC ELECTRICAL LTD,130290
South Ribble Council,http://statistics.data.gov.uk/doc/local-authority/30UN,Property Services,Operational Furniture & Equip,4013,"Annual contract 2020 / 2021 for care plan 1 for the catering equipment at the Civic Centre, Leyland",29/04/2020,0000454459,595.01,Revenue,BRITISH GAS SERVICES (COMMERCIAL) LTD,00016214
South Ribble Council,http://statistics.data.gov.uk/doc/local-authority/30UN,Property Services,Rep & Maint Premises,2020,"Annual contract 2020 / 2021 for care plan 3 at Moss Side Community Centre, Dunkirk Lane, Leyland",29/04/2020,0000454460,433.16,Revenue,BRITISH GAS SERVICES (COMMERCIAL) LTD,00016214
South Ribble Council,http://statistics.data.gov.uk/doc/local-authority/30UN,Property Services,Rep & Maint Premises,2020,"Annual contract 2020 / 2021 for care plan 3 at Moss Side Depot, 81 Bison Place, Leyland",29/04/2020,0000455949,330.00,Revenue,BRITISH GAS SERVICES (COMMERCIAL) LTD,00016214
South Ribble Council,http://statistics.data.gov.uk/doc/local-authority/30UN,Planning,Agency Fees,1121,Remote Planning Validation Support,07/04/2020,0000453989,"1,333.20",Revenue,CAPITA BUSINESS SERVICES LTD,00117948
South Ribble Council,http://statistics.data.gov.uk/doc/local-authority/30UN,Revenues Plus,Professional Fees,4520,Subsidy Webinar,03/04/2020,0000454051,300.00,Revenue,CAPITA BUSINESS SERVICES LTD,00122179
South Ribble Council,http://statistics.data.gov.uk/doc/local-authority/30UN,Planning,Agency Fees,1121,Remote Planning Validation Support,07/04/2020,0000454296,"1,624.88",Revenue,CAPITA BUSINESS SERVICES LTD,00117948
South Ribble Council,http://statistics.data.gov.uk/doc/local-authority/30UN,Planning,Agency Fees,1121,Remote Planning Validation Support,17/04/2020,0000455476,"1,533.18",Revenue,CAPITA BUSINESS SERVICES LTD,00117948
South Ribble Council,http://statistics.data.gov.uk/doc/local-authority/30UN,Revenues Plus,Peripherals,4242,DWP LA Data Sharing Programme,24/04/2020,0000455851,"6,093.68",Revenue,CAPITA BUSINESS SERVICES LTD,00122179
South Ribble Council,http://statistics.data.gov.uk/doc/local-authority/30UN,Shared Financial Services,External Contractors Charges,4570,Provision of Shared Financial Services 2018/19,15/04/2020,0000453218,"12,347.80",Revenue,CHORLEY BOROUGH COUNCIL,00017352
South Ribble Council,http://statistics.data.gov.uk/doc/local-authority/30UN,Shared Financial Services,External Contractors Charges,4570,Provision of Shared Financial and Procurement Services from 1 April 2019 - 31 March 2020,15/04/2020,0000454216,"146,000.00",Revenue,CHORLEY BOROUGH COUNCIL,00017352
South Ribble Council,http://statistics.data.gov.uk/doc/local-authority/30UN,Shared Financial Services,External Contractors Charges,4570,Provision of Shared Assistant Director of Finance 1st December 2019 - 31st March 2020,15/04/2020,0000454216,"9,000.00",Revenue,CHORLEY BOROUGH COUNCIL,00017352
South Ribble Council,http://statistics.data.gov.uk/doc/local-authority/30UN,Homelessness,Contractors Charges 5,5311,"Cotswold Supported Housing placement NAMES REDACTED, ADDRESS REDACTED  21.2 - 6.3.2020 15 nights @ 38.63/night",07/04/2020,0000454217,579.45,Revenue,CHORLEY BOROUGH COUNCIL,00017352
South Ribble Council,http://statistics.data.gov.uk/doc/local-authority/30UN,Homelessness,Contractors Charges 5,5311,,07/04/2020,0000454217,31.65,Revenue,CHORLEY BOROUGH COUNCIL,00017352
South Ribble Council,http://statistics.data.gov.uk/doc/local-authority/30UN,HR & Communications,Training Expense-Course Fees,1402,"NAME REDACTED TO ATTEND `PRACTICAL TRAINING IN REGULATORY SKILLS ON 11, 18 & 25 MARCH AT SOUTH RIBBLE CIVIC CENTRE",22/04/2020,0000455734,375.00,Revenue,CHORLEY BOROUGH COUNCIL,00017352
South Ribble Council,http://statistics.data.gov.uk/doc/local-authority/30UN,Shared Financial Services,Publications,4140,CIPFA Publications Subscription - 01 Apr 2020 - 31 Mar 2021,29/04/2020,0000455953,"2,775.00",Revenue,CIPFA BUSINESS LTD,00017187
South Ribble Council,http://statistics.data.gov.uk/doc/local-authority/30UN,Property Services,Rep & Maint Premises,2020,Labour PO CANCELLED IN ERROR BY NAME REDACTED,15/04/2020,0000454443,60.48,Revenue,COOPER BESPOKE JOINERY LTD,00104456
South Ribble Council,http://statistics.data.gov.uk/doc/local-authority/30UN,Property Services,Rep & Maint Premises,2020,MATERIALS,15/04/2020,0000454443,261.11,Revenue,COOPER BESPOKE JOINERY LTD,00104456
South Ribble Council,http://statistics.data.gov.uk/doc/local-authority/30UN,Housing,Cap Grant- Improve Grants,C570,DFG WORKS TO BATHROOM AT ADDRESS REDACTED CLIENT 899.33 + 180 CUSTOMER NOT USING THE LOWEST CONTRACTOR,03/04/2020,0000454236,"3,790.67",Revenue,Cornerstone Building & Maintenance Ltd,131383
South Ribble Council,http://statistics.data.gov.uk/doc/local-authority/30UN,Information Services,Peripherals,4241,"10 Laptops, product code SB07368",15/04/2020,0000454673,"3,900.75",Revenue,CPC Re: COMBINED PRECISION COMPONENTS PLC,00017954
South Ribble Council,http://statistics.data.gov.uk/doc/local-authority/30UN,Revenues Plus,Stationery,4130,End of year stationery,07/04/2020,0000453943,"3,766.56",Revenue,CRITIQOM,131053
South Ribble Council,http://statistics.data.gov.uk/doc/local-authority/30UN,Revenues Plus,Postage,4291,End of year postage,07/04/2020,0000453946,"16,333.68",Revenue,CRITIQOM,131053
South Ribble Council,http://statistics.data.gov.uk/doc/local-authority/30UN,Revenues Plus,Postage,4291,Postage April to Sept 2020,07/04/2020,0000454298,"1,070.61",Revenue,CRITIQOM,131053
South Ribble Council,http://statistics.data.gov.uk/doc/local-authority/30UN,Revenues Plus,Postage,4291,Postage April to Sept 2020,07/04/2020,0000454354,689.98,Revenue,CRITIQOM,131053
South Ribble Council,http://statistics.data.gov.uk/doc/local-authority/30UN,Revenues Plus,Stationery,4130,"50,000 Council Tax Envelopes",09/04/2020,0000454432,600.00,Revenue,CRITIQOM,131053
South Ribble Council,http://statistics.data.gov.uk/doc/local-authority/30UN,Revenues Plus,Postage,4291,Postage April to Sept 2020,15/04/2020,0000454977,285.56,Revenue,CRITIQOM,131053
South Ribble Council,http://statistics.data.gov.uk/doc/local-authority/30UN,Planning,Professional Fees,4510,Printing and posting of neighbour consultation letters for Pickerings Farm planning application,17/04/2020,0000455441,"2,744.20",Revenue,CRITIQOM,131053
South Ribble Council,http://statistics.data.gov.uk/doc/local-authority/30UN,Planning,Professional Fees,4510,Neighbour consult letters for Leyland Masterplan,22/04/2020,0000455535,"2,776.98",Revenue,CRITIQOM,131053
South Ribble Council,http://statistics.data.gov.uk/doc/local-authority/30UN,Revenues Plus,Stationery,4130,Stationery April to September 2020,22/04/2020,0000455726,401.57,Revenue,CRITIQOM,131053
South Ribble Council,http://statistics.data.gov.uk/doc/local-authority/30UN,Revenues Plus,Postage,4291,Postage April to Sept 2020,24/04/2020,0000455868,471.53,Revenue,CRITIQOM,131053
South Ribble Council,http://statistics.data.gov.uk/doc/local-authority/30UN,Housing,Cap Grant- Improve Grants,C570,DFG WORKS TO BATHROOM AT NAME REDACTED AS PER SRBC PLANS AND QUOTE SUPPLIED OF 3980.00 GRANT COST 3980.00,17/04/2020,0000455446,"3,980.00",Revenue,Croston Plumbing & Heating Ltd,131545
South Ribble Council,http://statistics.data.gov.uk/doc/local-authority/30UN,HR & Communications,Balance Sheet,0030,CYCLESCHEME BIKE PACKAGE FOR NAME REDACTED CERTIFICATE CODE: REDACTED,09/04/2020,0000454237,485.06,Revenue,CYCLESCHEME CO  UK,130237
South Ribble Council,http://statistics.data.gov.uk/doc/local-authority/30UN,HR & Communications,Balance Sheet,0030,helmets,09/04/2020,0000454237,35.99,Revenue,CYCLESCHEME CO  UK,130237
South Ribble Council,http://statistics.data.gov.uk/doc/local-authority/30UN,HR & Communications,Balance Sheet,0030,CYCLESCHEME BIKE PACKAGE FOR ANME REDACTED CERTIFICATE NUMBER:  REDACTED,24/04/2020,0000455812,541.67,Revenue,CYCLESCHEME CO  UK,130237
South Ribble Council,http://statistics.data.gov.uk/doc/local-authority/30UN,Legal,Legal,4821,PROFESSIONAL SERVICES REGARDING AN EMPLOYMENT MATTER,15/04/2020,0000454526,701.00,Revenue,DAC BEACHCROFT LLP,131193
South Ribble Council,http://statistics.data.gov.uk/doc/local-authority/30UN,Housing,Cap Grant- Improve Grants,C570,DFG WORKS TO BATHROOM AT ADDRESS REDACTED  AS PER QUOTE SUPPLIED OF 4043.00 ONWARD PAY 50% GRANT 2021.50,03/04/2020,0000454238,"2,021.50",Revenue,DAVID JOHNSTON BUILDERS LTD,133032
South Ribble Council,http://statistics.data.gov.uk/doc/local-authority/30UN,Area 2 - Waste Transport/Eastern & Central Teams,Materials General,4040,"set of brake discs, hub nuts VO65KPZ  JFC14378",07/04/2020,0000453890,529.00,Revenue,DENNIS EAGLE LTD,00019774
South Ribble Council,http://statistics.data.gov.uk/doc/local-authority/30UN,Area 2 - Waste Transport/Eastern & Central Teams,Materials General,4040,"1 drive belt, , throttle sensor, seat belt buckle VO65 KPY JFC14416",09/04/2020,0000454355,442.26,Revenue,DENNIS EAGLE LTD,00019774
South Ribble Council,http://statistics.data.gov.uk/doc/local-authority/30UN,Area 2 - Waste Transport/Eastern & Central Teams,Materials General,4040,1 valve VO65 KRE JFC14492,24/04/2020,0000455732,454.20,Revenue,DENNIS EAGLE LTD,00019774
South Ribble Council,http://statistics.data.gov.uk/doc/local-authority/30UN,Area 2 - Waste Transport/Eastern & Central Teams,Materials General,4040,"1 carriage plate, 8 slide blocks, 4 bushes, 2 pins, 1 hopper floor  VO65 KPZ JFC14488",29/04/2020,0000455745,"5,696.43",Revenue,DENNIS EAGLE LTD,00019774
South Ribble Council,http://statistics.data.gov.uk/doc/local-authority/30UN,Area 2 - Waste Transport/Eastern & Central Teams,Materials General,4040,"2 x pins, 4 bushes, 2 adaptors, 1 carriage cylinder, 2 screws VO65 KPZ JFC14488",29/04/2020,0000455811,"1,022.69",Revenue,DENNIS EAGLE LTD,00019774
South Ribble Council,http://statistics.data.gov.uk/doc/local-authority/30UN,Shared Assurance Services,Agency Fees,1121,Provision of an Interim Auditor,15/04/2020,0000453979,"1,537.29",Revenue,Eden Brown,132982
South Ribble Council,http://statistics.data.gov.uk/doc/local-authority/30UN,Shared Assurance Services,Agency Fees,1121,Provision of an Interim Auditor,15/04/2020,0000454068,"1,307.58",Revenue,Eden Brown,132982
South Ribble Council,http://statistics.data.gov.uk/doc/local-authority/30UN,Information Services,Peripherals,4260,1st April 2020,09/04/2020,0000454429,"4,022.70",Revenue,EE Ltd,131653
South Ribble Council,http://statistics.data.gov.uk/doc/local-authority/30UN,Information Services,Peripherals,4244,40 new connections - Samsung A40s @ 190 each,07/04/2020,0000454428,"7,600.00",Revenue,EE Payment Processing,131950
South Ribble Council,http://statistics.data.gov.uk/doc/local-authority/30UN,Area 1 - Penwortham Western Parishes,Grounds Maint Cntrctrs Chgs,4657,PROVISION OF LISENSED BAT SURVEYOR AND 6 BAT BOXES AT HURST GRANGE PARK COACH HOUSE.,29/04/2020,0000455809,500.00,Revenue,ERAP (Consultant Ecologists) Ltd,132895
South Ribble Council,http://statistics.data.gov.uk/doc/local-authority/30UN,Area 2 - Waste Transport/Eastern & Central Teams,Materials General,4040,Hydraulic pump VK09 AHJ JFC14426,09/04/2020,0000454241,350.00,Revenue,Euro Municipals Ltd,132810
South Ribble Council,http://statistics.data.gov.uk/doc/local-authority/30UN,Area 2 - Waste Transport/Eastern & Central Teams,Printing,4127,SUPPLY & DELIVERY OF GARDEN WASTE PERMITS AS PER QUOTE 23.8.19 TO COVER JAN TO DEC 2020,03/04/2020,0000454060,"3,969.10",Revenue,Euro Print Labels,132447
South Ribble Council,http://statistics.data.gov.uk/doc/local-authority/30UN,Regeneration,Other Misc,4851,Order of Food and Toiletries as part of the Coronavirus Action Plan within South Ribble,15/04/2020,0000454669,"1,631.16",Revenue,Ewood Foods,133075
South Ribble Council,http://statistics.data.gov.uk/doc/local-authority/30UN,Regeneration,Other Misc,4851,vat items,15/04/2020,0000454669,404.40,Revenue,Ewood Foods,133075
South Ribble Council,http://statistics.data.gov.uk/doc/local-authority/30UN,Regeneration,Other Misc,4851,Food & Toiletries as part of the Coronavirus Action Plan,15/04/2020,0000454989,"1,781.48",Revenue,Ewood Foods,133075
South Ribble Council,http://statistics.data.gov.uk/doc/local-authority/30UN,Regeneration,Other Misc,4851,Food & Toiletries as part of the Coronavirus Action Plan,15/04/2020,0000454989,265.50,Revenue,Ewood Foods,133075
South Ribble Council,http://statistics.data.gov.uk/doc/local-authority/30UN,Regeneration,Other Misc,4851,food & toiletries PO rec`d in full in error should be partial,22/04/2020,0000455447,998.78,Revenue,Ewood Foods,133075
South Ribble Council,http://statistics.data.gov.uk/doc/local-authority/30UN,Regeneration,Other Misc,4851,Purchase of Food & Toiletries as Part of the Coronavirus Action Plan,17/04/2020,0000455449,"1,778.65",Revenue,Ewood Foods,133075
South Ribble Council,http://statistics.data.gov.uk/doc/local-authority/30UN,Regeneration,Other Misc,4851,food & toiletries PO rec`d in full in errorshould be partial,22/04/2020,0000455450,624.00,Revenue,Ewood Foods,133075
South Ribble Council,http://statistics.data.gov.uk/doc/local-authority/30UN,Regeneration,Other Misc,4851,Supplies as part of Coronavirus Action Plan,17/04/2020,0000455527,"6,151.85",Revenue,Ewood Foods,133075
South Ribble Council,http://statistics.data.gov.uk/doc/local-authority/30UN,Revenues Plus,Professional Fees,4520,Citizen View,22/04/2020,0000455042,"1,600.00",Revenue,EXPERIAN LTD,00094045
South Ribble Council,http://statistics.data.gov.uk/doc/local-authority/30UN,Area 3 - Parks/Leyland East West,Cap Vehicles,C440,Ferris 36`` Walk behind Flail mower Kawasaki Twin petrol engine 36`` cutting width Single cleated tyres FOR DELIVERY 1st WEEK APRIL 2020,07/04/2020,0000454242,"14,100.00",Revenue,F R SHARROCK LTD,00034539
South Ribble Council,http://statistics.data.gov.uk/doc/local-authority/30UN,Area 2 - Waste Transport/Eastern & Central Teams,External Contractors Charges,4570,Additional Clinical Waste March 2020 (estimated),07/04/2020,0000454056,321.20,Revenue,FCC Environment Services (UK) Ltd,131612
South Ribble Council,http://statistics.data.gov.uk/doc/local-authority/30UN,Area 2 - Waste Transport/Eastern & Central Teams,Balance Sheet,0030,retention,07/04/2020,0000454056,-16.06,Revenue,FCC Environment Services (UK) Ltd,131612
South Ribble Council,http://statistics.data.gov.uk/doc/local-authority/30UN,Area 2 - Waste Transport/Eastern & Central Teams,External Contractors Charges,4570,Additional WEEE collections March 2020 (estimated),07/04/2020,0000454061,222.82,Revenue,FCC Environment Services (UK) Ltd,131612
South Ribble Council,http://statistics.data.gov.uk/doc/local-authority/30UN,Area 2 - Waste Transport/Eastern & Central Teams,External Contractors Charges,4570,Additional bulky waste collections March 2020 (estimated),07/04/2020,0000454061,538.67,Revenue,FCC Environment Services (UK) Ltd,131612
South Ribble Council,http://statistics.data.gov.uk/doc/local-authority/30UN,Area 2 - Waste Transport/Eastern & Central Teams,Balance Sheet,0030,RETENTION,07/04/2020,0000454061,-38.07,Revenue,FCC Environment Services (UK) Ltd,131612
South Ribble Council,http://statistics.data.gov.uk/doc/local-authority/30UN,Area 2 - Waste Transport/Eastern & Central Teams,External Contractors Charges,4570,Residual Waste Collections March 2020,15/04/2020,0000454532,"45,660.96",Revenue,FCC Environment Services (UK) Ltd,131612
South Ribble Council,http://statistics.data.gov.uk/doc/local-authority/30UN,Area 2 - Waste Transport/Eastern & Central Teams,External Contractors Charges,4570,Dry recyclable non - terraced March 2020,15/04/2020,0000454532,"46,746.51",Revenue,FCC Environment Services (UK) Ltd,131612
South Ribble Council,http://statistics.data.gov.uk/doc/local-authority/30UN,Area 2 - Waste Transport/Eastern & Central Teams,External Contractors Charges,4570,Dry recyclable terraced March 2020,15/04/2020,0000454532,"2,224.41",Revenue,FCC Environment Services (UK) Ltd,131612
South Ribble Council,http://statistics.data.gov.uk/doc/local-authority/30UN,Area 2 - Waste Transport/Eastern & Central Teams,External Contractors Charges,4570,Organic waste non terraced March 2020,15/04/2020,0000454532,"32,371.11",Revenue,FCC Environment Services (UK) Ltd,131612
South Ribble Council,http://statistics.data.gov.uk/doc/local-authority/30UN,Area 2 - Waste Transport/Eastern & Central Teams,External Contractors Charges,4570,Schedule 2 properties March 2020,15/04/2020,0000454532,"1,860.35",Revenue,FCC Environment Services (UK) Ltd,131612
South Ribble Council,http://statistics.data.gov.uk/doc/local-authority/30UN,Area 2 - Waste Transport/Eastern & Central Teams,External Contractors Charges,4570,Commercial waste March 2020,15/04/2020,0000454532,"7,249.95",Revenue,FCC Environment Services (UK) Ltd,131612
South Ribble Council,http://statistics.data.gov.uk/doc/local-authority/30UN,Area 2 - Waste Transport/Eastern & Central Teams,External Contractors Charges,4570,Bulky waste March 2020,15/04/2020,0000454532,"1,005.57",Revenue,FCC Environment Services (UK) Ltd,131612
South Ribble Council,http://statistics.data.gov.uk/doc/local-authority/30UN,Area 2 - Waste Transport/Eastern & Central Teams,External Contractors Charges,4570,WEEE collections March 2020,15/04/2020,0000454532,377.48,Revenue,FCC Environment Services (UK) Ltd,131612
South Ribble Council,http://statistics.data.gov.uk/doc/local-authority/30UN,Area 2 - Waste Transport/Eastern & Central Teams,External Contractors Charges,4570,Clinical waste collections March 2020,15/04/2020,0000454532,643.04,Revenue,FCC Environment Services (UK) Ltd,131612
South Ribble Council,http://statistics.data.gov.uk/doc/local-authority/30UN,Area 2 - Waste Transport/Eastern & Central Teams,External Contractors Charges,4570,Replacement bins March 2020,15/04/2020,0000454532,"5,000.00",Revenue,FCC Environment Services (UK) Ltd,131612
South Ribble Council,http://statistics.data.gov.uk/doc/local-authority/30UN,Area 2 - Waste Transport/Eastern & Central Teams,External Contractors Charges,4570,Additional properties March 2020,15/04/2020,0000454532,"2,941.70",Revenue,FCC Environment Services (UK) Ltd,131612
South Ribble Council,http://statistics.data.gov.uk/doc/local-authority/30UN,Area 2 - Waste Transport/Eastern & Central Teams,Balance Sheet,0030,RETENTION,15/04/2020,0000454532,"-2,986.95",Revenue,FCC Environment Services (UK) Ltd,131612
South Ribble Council,http://statistics.data.gov.uk/doc/local-authority/30UN,Area 2 - Waste Transport/Eastern & Central Teams,Balance Sheet,0030,RETENTION,15/04/2020,0000454532,"-4,067.10",Revenue,FCC Environment Services (UK) Ltd,131612
South Ribble Council,http://statistics.data.gov.uk/doc/local-authority/30UN,Healthy Communities,Consultancy Fees,4541,"Future Work on Management of the Leisure Sites 1st Dec 2019 to 29th Feb 2020 inc consultations, members report, and w/shop/presentation",15/04/2020,0000454033,"1,950.00",Revenue,FMG Consulting Ltd,133044
South Ribble Council,http://statistics.data.gov.uk/doc/local-authority/30UN,Healthy Communities,Advertising,4842,Various Nike Academy garments in various sizes. Total Net Amount   534.54 Total VAT Amount  106.91 Order Total             641.45,22/04/2020,0000454980,534.54,Revenue,Galaxy,132430
South Ribble Council,http://statistics.data.gov.uk/doc/local-authority/30UN,Legal,Legal,4821,"PROFESSIONAL SERVICES BY NAME REDACTED, INVESTIGATOR ON A REDACTED MATTER",15/04/2020,0000454966,"22,754.70",Revenue,GELDARDS LLP,133028
South Ribble Council,http://statistics.data.gov.uk/doc/local-authority/30UN,Legal,Legal,4821,"PROFESSIONAL SERVICES BY NAME REDACTED, INVESTIGATOR ON A REDACTED MATTER TO 26 MARCH 2020",29/04/2020,0000455865,"11,127.22",Revenue,GELDARDS LLP,133028
South Ribble Council,http://statistics.data.gov.uk/doc/local-authority/30UN,Legal,Legal,4821,PROFESSIONAL SERVICES BY NAME REDACTED INVESTIGATOR ON A REDACTED MATTER TO 29 FEBRUARY 2020,29/04/2020,0000455866,"11,392.90",Revenue,GELDARDS LLP,133028
South Ribble Council,http://statistics.data.gov.uk/doc/local-authority/30UN,Property Services,Professional Fees,4510,Professional services relating to Leyland Test Track,22/04/2020,0000453043,"5,000.00",Revenue,Gerald Eve LLP,133018
South Ribble Council,http://statistics.data.gov.uk/doc/local-authority/30UN,Area 3 - Parks/Leyland East West,Cap Vehicles,C440,"1 x Major MJ27 - 160 GB Green B Flail Collector, 2m3 capacity, 36 flails, 750kg, PTO rpm (Delivery April 2020)",07/04/2020,0000454048,"9,350.00",Revenue,GIBSONS GARDEN MACHINERY LTD,00059051
South Ribble Council,http://statistics.data.gov.uk/doc/local-authority/30UN,Housing,Cap Grant- Improve Grants,C570,DFG WORKS AS PER SRBC SPEC AT ADDRESS REDACTED QUOTE 20580.00 TOTAL GRANT PAYABLE 20580.00,03/04/2020,0000454038,"9,310.00",Revenue,Greenside Design and Build,132944
South Ribble Council,http://statistics.data.gov.uk/doc/local-authority/30UN,Area 2 - Waste Transport/Eastern & Central Teams,Materials General,4040,4 x Brake Pad Kits BIN539,03/04/2020,0000454017,340.00,Revenue,H & J SERVICES LTD,00114446
South Ribble Council,http://statistics.data.gov.uk/doc/local-authority/30UN,Area 2 - Waste Transport/Eastern & Central Teams,Materials General,4040,Filters for Stores,09/04/2020,0000454527,262.70,Revenue,H & J SERVICES LTD,00114446
South Ribble Council,http://statistics.data.gov.uk/doc/local-authority/30UN,Area 2 - Waste Transport/Eastern & Central Teams,Materials General,4040,Brake Pad Kit (DENNIS) BIN539,09/04/2020,0000454531,340.00,Revenue,H & J SERVICES LTD,00114446
South Ribble Council,http://statistics.data.gov.uk/doc/local-authority/30UN,Housing,Cap Grant- Improve Grants,C570,DFG WORKS TO BATHROOM AT NAME REDACTED AS PER QUOTE SUPPIED FOR SRBC PLANS OF 5050.00 COST 5050.00,03/04/2020,0000454245,"5,441.00",Revenue,Hall Building Contractors Ltd,131423
South Ribble Council,http://statistics.data.gov.uk/doc/local-authority/30UN,Shared Assurance Services,Agency Fees,1121,Internal Auditor - NAME REDACTED for week ending period 8/11/19 - 27/03/19 (excluding Christmas closedown),15/04/2020,0000453687,"1,208.94",Revenue,Hays Specialist Recruitment Ltd,132288
South Ribble Council,http://statistics.data.gov.uk/doc/local-authority/30UN,Shared Assurance Services,Agency Fees,1121,Internal Auditor - NAME REDACTED for week ending period 8/11/19 - 27/03/19 (excluding Christmas closedown) ,15/04/2020,0000453688,"1,196.09",Revenue,Hays Specialist Recruitment Ltd,132288
South Ribble Council,http://statistics.data.gov.uk/doc/local-authority/30UN,Property Services,Grounds Maint Cntrctrs Chgs,4657,credit already rec`d,07/04/2020,0000453545,355.18,Revenue,Healthmatic Limited,132565
South Ribble Council,http://statistics.data.gov.uk/doc/local-authority/30UN,Information Services,Peripherals,4248,"Imperago SaaS 300 Flexitime & Door Access Licenses, 200 Door Access Only Licenses,  Hardware Maintenance & Support ",07/04/2020,0000454037,"9,448.62",Revenue,HFX LTD,00023728
South Ribble Council,http://statistics.data.gov.uk/doc/local-authority/30UN,Homelessness,Contractors Charges 5,5311,NAME REDACTED placement 17/2/2020 - 1/3/2020 @55/n,03/04/2020,0000453877,770.00,Revenue,HILL VIEW (PRIVATE HOTEL),00099147
South Ribble Council,http://statistics.data.gov.uk/doc/local-authority/30UN,Homelessness,Contractors Charges 5,5311,NAME REDACTED continued placement 2 - 18/3/2020 = 17 nights @ 55.00/night,03/04/2020,0000453877,935.00,Revenue,HILL VIEW (PRIVATE HOTEL),00099147
South Ribble Council,http://statistics.data.gov.uk/doc/local-authority/30UN,Homelessness,Contractors Charges 5,5311,NAME REDACTED placement for NAME REDACTED 3 nights 20-22/12/2019 @ 55/n 165 9 nights 24/12/2019 - 1/1/2020 @55/n 495,03/04/2020,0000454029,660.00,Revenue,HILL VIEW (PRIVATE HOTEL),00099147
South Ribble Council,http://statistics.data.gov.uk/doc/local-authority/30UN,Homelessness,Contractors Charges 5,5311,placement for NAME REDACTED 2/1/2020 - 2/2/2020 = 32 nights at 55/night,03/04/2020,0000454029,"1,760.00",Revenue,HILL VIEW (PRIVATE HOTEL),00099147
South Ribble Council,http://statistics.data.gov.uk/doc/local-authority/30UN,Homelessness,Contractors Charges 5,5311,NAME REDACTED continued placement at HVH 3.2.20 x 7 nights 10-13.2.20 x 4 nights 14-20.2.20 x 7 nights 55.00/ night x  18,03/04/2020,0000454029,990.00,Revenue,HILL VIEW (PRIVATE HOTEL),00099147
South Ribble Council,http://statistics.data.gov.uk/doc/local-authority/30UN,Homelessness,Contractors Charges 5,5311,"NAME REDACTED cont placement 21-27/2/2020, left on 28/2/20 7 nights @55.00/night",03/04/2020,0000454029,385.00,Revenue,HILL VIEW (PRIVATE HOTEL),00099147
South Ribble Council,http://statistics.data.gov.uk/doc/local-authority/30UN,Shared Financial Services,Balance Sheet,0140,,15/04/2020,0000453597,290.00,Revenue,HM REVENUE & CUSTOMS,00024837
South Ribble Council,http://statistics.data.gov.uk/doc/local-authority/30UN,Shared Financial Services,Balance Sheet,0140,,15/04/2020,0000453725,"3,741.72",Revenue,HM REVENUE & CUSTOMS,00024837
South Ribble Council,http://statistics.data.gov.uk/doc/local-authority/30UN,Shared Financial Services,Balance Sheet,0140,,15/04/2020,0000453953,256.00,Revenue,HM REVENUE & CUSTOMS,00024837
South Ribble Council,http://statistics.data.gov.uk/doc/local-authority/30UN,Property Services,Rep & Maint Premises,2020,"Please carry out works at Civic Centre - Painting, decorating, and re-carpeting as per NAME REDACTED as per the tender",15/04/2020,0000454359,"9,029.15",Revenue,Holden Building Solutions Limited,132607
South Ribble Council,http://statistics.data.gov.uk/doc/local-authority/30UN,Property Services,Rep & Maint Premises,2020,materials,15/04/2020,0000454359,"4,448.98",Revenue,Holden Building Solutions Limited,132607
South Ribble Council,http://statistics.data.gov.uk/doc/local-authority/30UN,Regeneration,Other Misc,4851,"50 x 1 Litre Semi Skimmed Milk, 50 x 1 Litre Pasteurised Milk, 9 x 12 500ml UHT Milk, 150 x 200g blocks of Cheese, 100 x Apple & Orange Juice",17/04/2020,0000455451,703.60,Revenue,Holme Farm Doorstep Ltd,133079
South Ribble Council,http://statistics.data.gov.uk/doc/local-authority/30UN,Regeneration,Other Misc,4851,"50 x 1 Litre Semi Skimmed Milk, 50 x 1 Litre Pasteurised Milk, 1 x 12 500ml UHT Milk, 48 x 200g blocks of Cheese, 72 x Apple & Orange Juice",17/04/2020,0000455528,316.00,Revenue,Holme Farm Doorstep Ltd,133079
South Ribble Council,http://statistics.data.gov.uk/doc/local-authority/30UN,Democratic Services,Training Expense-Course Fees,1406,CLLRS NAMES REDACTED TO ATTEND EFFECTIVE SCRUTINY ON 22 - 23 JANUARY 2020 (1 NIGHT),09/04/2020,0000454223,250.00,Revenue,IDEA IMPROVEMENT & DEV AGENCY for LOCAL GOV,00012111
South Ribble Council,http://statistics.data.gov.uk/doc/local-authority/30UN,Environmental Health,Professional Fees,4510,Uniform Application Consultancy (onsite) - per NAME REDACTED.,24/04/2020,0000455043,"1,050.00",Revenue,IDOX PLC,00104485
South Ribble Council,http://statistics.data.gov.uk/doc/local-authority/30UN,Property Services,Operational Furniture & Equip,4012,Contract C/90229411 for 1 x 85 x 300 floor mat in pebble at Moss Side depot from 1st April 2020 to 31st March 2021,22/04/2020,0000455667,587.00,Revenue,INITIAL WASHROOM HYGIENE,00024811
South Ribble Council,http://statistics.data.gov.uk/doc/local-authority/30UN,Property Services,Operational Furniture & Equip,4012,2020 / 2021 annual contract for the nappy disposal unit at Leyland Market,22/04/2020,0000455667,470.87,Revenue,INITIAL WASHROOM HYGIENE,00024811
South Ribble Council,http://statistics.data.gov.uk/doc/local-authority/30UN,Property Services,Cleaning and Domestic Supplies,2710,2020 / 2021 annual contract for 2 floor mats at Leyland Market,22/04/2020,0000455667,"1,083.08",Revenue,INITIAL WASHROOM HYGIENE,00024811
South Ribble Council,http://statistics.data.gov.uk/doc/local-authority/30UN,Property Services,Cleaning and Domestic Supplies,2710,2020 / 2021  contract for the provision of 1 additional  standard plus 115 x 180 carbon graphite mat at Leyland market,22/04/2020,0000455667,307.40,Revenue,INITIAL WASHROOM HYGIENE,00024811
South Ribble Council,http://statistics.data.gov.uk/doc/local-authority/30UN,Property Services,Cleaning and Domestic Supplies,2710,waste transfer charge,22/04/2020,0000455667,39.00,Revenue,INITIAL WASHROOM HYGIENE,00024811
South Ribble Council,http://statistics.data.gov.uk/doc/local-authority/30UN,Neighbourhood Admin & Support,External Contractors Charges,4570,To supply and fit OCIO Electronics Gauge to the Diesel Feeder Tank at Moss Side Depot,29/04/2020,0000455927,424.00,Revenue,J SEED & CO LTD,00121675
South Ribble Council,http://statistics.data.gov.uk/doc/local-authority/30UN,Property Services,Rep & Maint Premises,2020,Please supply & install 11 x thermostatic radiator valves at Moss Side Depot as per estimate 1020,15/04/2020,0000455005,575.00,Revenue,J Whittle plumbing & heating,132695
South Ribble Council,http://statistics.data.gov.uk/doc/local-authority/30UN,Property Services,Rep & Maint Premises,2020,Please supply & install 3 x LST radiators at Moss Side Community Centre as per  estimate 0920,15/04/2020,0000455005,"2,520.00",Revenue,J Whittle plumbing & heating,132695
South Ribble Council,http://statistics.data.gov.uk/doc/local-authority/30UN,Property Services,Rep & Maint Premises,2020,Please undertake works to re- commission 3 No boilers at Worden Park,07/04/2020,0000454035,561.56,Revenue,JAMES MERCER GROUP LTD,00028587
South Ribble Council,http://statistics.data.gov.uk/doc/local-authority/30UN,Regeneration,Contributions,4730,Refund of Asda Shopping for Hunger Scheme. Paid on own credit card,29/04/2020,0000455904,336.06,Revenue,NAME REDACTED,133073
South Ribble Council,http://statistics.data.gov.uk/doc/local-authority/30UN,Planning,Advertising,4841,Press Notices in the Lancashire Evening Post for planning applications April 2020 to March 2021,17/04/2020,0000454247,972.00,Revenue,JPI Media - JOHNSTON PUBLISHING (NORTH WEST),00011345
South Ribble Council,http://statistics.data.gov.uk/doc/local-authority/30UN,Planning,Advertising,4841,Press Notices in the Lancashire Evening Post for planning applications April 2020 to March 2021,17/04/2020,0000454248,729.00,Revenue,JPI Media - JOHNSTON PUBLISHING (NORTH WEST),00011345
South Ribble Council,http://statistics.data.gov.uk/doc/local-authority/30UN,Planning,Advertising,4841,Press Notices in the Lancashire Evening Post for planning applications April 2020 to March 2021,17/04/2020,0000454249,810.00,Revenue,JPI Media - JOHNSTON PUBLISHING (NORTH WEST),00011345
South Ribble Council,http://statistics.data.gov.uk/doc/local-authority/30UN,Area 3 - Parks/Leyland East West,Contract Hire & Lease Costs,3212,Hire of Cherry Picker - Withy Grove Bamber Bridge 21st and 22nd January 2020,24/04/2020,0000452804,270.00,Revenue,K H HIRE SERVICES,00012933
South Ribble Council,http://statistics.data.gov.uk/doc/local-authority/30UN,Regeneration,Contributions,4730,Holiday Hunger Project,07/04/2020,0000453607,445.93,Revenue,KEY UNLOCKING FUTURES LTD,00098601
South Ribble Council,http://statistics.data.gov.uk/doc/local-authority/30UN,Homelessness,Contributions,4730,SRBC Tenancy Support Q3 2019/20 Dec 2019 to Feb 2020,03/04/2020,0000453876,"4,875.00",Revenue,KEY UNLOCKING FUTURES LTD,00098601
South Ribble Council,http://statistics.data.gov.uk/doc/local-authority/30UN,Regeneration,Other Misc,4851,Supply of food/toiletries as part of the Coronavirus Action Plan,15/04/2020,0000454997,"1,699.96",Revenue,Khanjra International Foods Ltd,133076
South Ribble Council,http://statistics.data.gov.uk/doc/local-authority/30UN,Regeneration,Other Misc,4851,vat item,15/04/2020,0000454997,335.58,Revenue,Khanjra International Foods Ltd,133076
South Ribble Council,http://statistics.data.gov.uk/doc/local-authority/30UN,Regeneration,Other Misc,4851,Supplies for Coronavirus Action Plan,22/04/2020,0000455545,"3,141.00",Revenue,Khanjra International Foods Ltd,133076
South Ribble Council,http://statistics.data.gov.uk/doc/local-authority/30UN,Property Services,Other Misc,4851,"Please supply the following as per NAME REDACTED It is going to be charged on the covid code, Order value 537 For 300 IRR masks",22/04/2020,0000455618,537.00,Revenue,Kingswood Office Supplies,133083
South Ribble Council,http://statistics.data.gov.uk/doc/local-authority/30UN,Area 3 - Parks/Leyland East West,Capital Expenditure,C230,CANCELLED BY CREDIT 35788,15/04/2020,0000453376,"148,620.03",Revenue,KOMPAN LTD,00026026
South Ribble Council,http://statistics.data.gov.uk/doc/local-authority/30UN,Area 3 - Parks/Leyland East West,Capital Expenditure,C230,"Design and build new toddler and junior play area at Worden Park playground, Leyland",15/04/2020,0000454659,"104,574.44",Revenue,KOMPAN LTD,00026026
South Ribble Council,http://statistics.data.gov.uk/doc/local-authority/30UN,Building Control,Professional Fees,4510,LABC Services 2020/2021,22/04/2020,0000455006,"2,147.11",Revenue,LABC,00119218
South Ribble Council,http://statistics.data.gov.uk/doc/local-authority/30UN,Planning,Professional Fees,4510,Investment property strategy 2018 - 2019,09/04/2020,0000454524,"3,200.00",Revenue,Lambert Smith Hampton Investment Management Ltd,132594
South Ribble Council,http://statistics.data.gov.uk/doc/local-authority/30UN,Shared Financial Services,Salaries Superannuation,1161,"cont for 2020/21, 2021/22 and 2022/23",22/04/2020,0000455038,"3,434,400.00",Revenue,LANCASHIRE COUNTY COUNCIL PENSION FUND,130639
South Ribble Council,http://statistics.data.gov.uk/doc/local-authority/30UN,Shared Financial Services,Salaries Superannuation,1161,LUMP,22/04/2020,0000455038,"217,000.00",Revenue,LANCASHIRE COUNTY COUNCIL PENSION FUND,130639
South Ribble Council,http://statistics.data.gov.uk/doc/local-authority/30UN,Area 2 - Waste Transport/Eastern & Central Teams,External Contractors Charges,4570,1 spec repair VU11 HSZ JFC14396,24/04/2020,0000454515,872.31,Revenue,Lancashire Waste Services Limited,131510
South Ribble Council,http://statistics.data.gov.uk/doc/local-authority/30UN,Environmental Health,Materials General,4041,Bird proofing at Ormskirk Police Station,22/04/2020,0000454210,"2,528.96",Revenue,LANCASTER CITY COUNCIL,131113
South Ribble Council,http://statistics.data.gov.uk/doc/local-authority/30UN,Housing,Cap Grant- Improve Grants,C570,DFG WORKS TO SUPPLY AND INSTALL HOIST AT ADDRESS REDACTED AS PER QUOTE SUPPLIED COST 1140.00,07/04/2020,0000454345,"1,140.00",Revenue,LANCS COUNTY COUNCIL,00041645
South Ribble Council,http://statistics.data.gov.uk/doc/local-authority/30UN,Housing,Cap Grant- Improve Grants,C570,Supply and install a door opening system at ADDRESS REDACTED via STEEPER ASSISTIVE TECHNOLOGY DIVISION quote by LCC 4165.11,09/04/2020,0000454464,"3,343.67",Revenue,LANCS COUNTY COUNCIL,00041645
South Ribble Council,http://statistics.data.gov.uk/doc/local-authority/30UN,Housing,Cap Grant- Improve Grants,C570,DFG WORKS TO SUPPLY AND INSTALL A GEBERIT TOILET AT ADDRESS REDACTED AS PER QUOTE SUPPLIED OF 3495.00 ,09/04/2020,0000454516,"3,660.00",Revenue,LANCS COUNTY COUNCIL,00041645
South Ribble Council,http://statistics.data.gov.uk/doc/local-authority/30UN,Housing,Cap Grant- Improve Grants,C570,DFG WORKS TO SUPPLY AND INSTALL HOIST EQUIPMENT AT ADDRESS REDACTED AS PER QUOTE SUPPLIED BY LCC OF 1677.79,09/04/2020,0000454517,"1,677.79",Revenue,LANCS COUNTY COUNCIL,00041645
South Ribble Council,http://statistics.data.gov.uk/doc/local-authority/30UN,Legal,Other Local Authorities,4530,LAND CHARGES - FEBRUARY 2020,15/04/2020,0000454528,"1,126.50",Revenue,LANCS COUNTY COUNCIL,00041645
South Ribble Council,http://statistics.data.gov.uk/doc/local-authority/30UN,Housing,Cap Grant- Improve Grants,C570,DFG WORKS TO SUPPLY AND INSTALL STAIRLIFT AT ADDRESS REDACTED PER QUOTE 6051.00 CUSTOMER 375.87 GRANT 5675.13,17/04/2020,0000455453,"5,675.13",Revenue,LANCS COUNTY COUNCIL,00041645
South Ribble Council,http://statistics.data.gov.uk/doc/local-authority/30UN,Housing,Cap Grant- Improve Grants,C570,DFG WORKS TO SUPPLY AND INSTALL A STAIRLIFT AT ADDRESS REDACTED PER QUOTE 1370.00 GRANT 1370.00,17/04/2020,0000455454,"1,370.00",Revenue,LANCS COUNTY COUNCIL,00041645
South Ribble Council,http://statistics.data.gov.uk/doc/local-authority/30UN,Housing,Cap Grant- Improve Grants,C570,DFG WORKS SUPPLY AND INSTALL STARILIFT AT ADDRESS REDACTED PER QUOTE OF 3354.00 COST 3354.00,17/04/2020,0000455457,"3,354.00",Revenue,LANCS COUNTY COUNCIL,00041645
South Ribble Council,http://statistics.data.gov.uk/doc/local-authority/30UN,Housing,Cap Grant- Improve Grants,C570,DFG WORKS TO SUPPLY AND INSTALL A STARILIFT AT ADDRESS REDACTED PER QUOTE OF 3282.00 COST 3282.00,17/04/2020,0000455458,"3,282.00",Revenue,LANCS COUNTY COUNCIL,00041645
South Ribble Council,http://statistics.data.gov.uk/doc/local-authority/30UN,Legal,Other Local Authorities,4530,LAND CHARGES - MARCH 2020,22/04/2020,0000455518,"1,731.00",Revenue,LANCS COUNTY COUNCIL,00041645
South Ribble Council,http://statistics.data.gov.uk/doc/local-authority/30UN,Area 1 - Penwortham Western Parishes,Professional Fees,4516,Back Office Processing January - March 2020 212 PCNs  @ 3.45,22/04/2020,0000455546,731.40,Revenue,LANCS COUNTY COUNCIL,00041645
South Ribble Council,http://statistics.data.gov.uk/doc/local-authority/30UN,Area 1 - Penwortham Western Parishes,Professional Fees,4516,TEC Recharges January - March 2020 16 PCNs @ 8.00,22/04/2020,0000455546,128.00,Revenue,LANCS COUNTY COUNCIL,00041645
South Ribble Council,http://statistics.data.gov.uk/doc/local-authority/30UN,Housing,Cap Grant- Improve Grants,C570,DFG WORKS TO SUPPLY AND INSTALL STAIRLIFT AT ADDRESS REDACTED PER QUOTE OF 2979.00 FROM STANNAH GRANT 2979.00,24/04/2020,0000455864,"2,979.00",Revenue,LANCS COUNTY COUNCIL,00041645
South Ribble Council,http://statistics.data.gov.uk/doc/local-authority/30UN,Area 2 - Waste Transport/Eastern & Central Teams,Materials General,4040,1 filter kit and oil DX19XBJ JFC14402,07/04/2020,0000454252,280.64,Revenue,LANCS DAF,00026424
South Ribble Council,http://statistics.data.gov.uk/doc/local-authority/30UN,Area 2 - Waste Transport/Eastern & Central Teams,Materials General,4040,1 SERVICE PACK YD19 AUT JFC14471,22/04/2020,0000455532,427.41,Revenue,LANCS DAF,00026424
South Ribble Council,http://statistics.data.gov.uk/doc/local-authority/30UN,Area 2 - Waste Transport/Eastern & Central Teams,Materials General,4040,1 set rear brake pads YD19 AUN JFC14490,24/04/2020,0000455802,135.00,Revenue,LANCS DAF,00026424
South Ribble Council,http://statistics.data.gov.uk/doc/local-authority/30UN,Area 2 - Waste Transport/Eastern & Central Teams,Materials General,4040,1 set rear brake pads YD19 AUM JFC14489,24/04/2020,0000455802,135.00,Revenue,LANCS DAF,00026424
South Ribble Council,http://statistics.data.gov.uk/doc/local-authority/30UN,Area 2 - Waste Transport/Eastern & Central Teams,Materials General,4040,1 SERVICE PACK YA149 NJZ JFC14501,29/04/2020,0000455957,386.18,Revenue,LANCS DAF,00026424
South Ribble Council,http://statistics.data.gov.uk/doc/local-authority/30UN,Scrutiny,Subs to Statutory Bodies,4720,FULL GROUP MEMBERSHIP SUBSCRIPTION - 1 APRIL 2020 - 31 MARCH 2021,22/04/2020,0000455525,260.00,Revenue,LAWYERS IN LOCAL GOVERMENT,130885
South Ribble Council,http://statistics.data.gov.uk/doc/local-authority/30UN,Healthy Communities,Sports Dev Expenses,4894,Provision of annual subscription to the Les Mills programme.,07/04/2020,0000453663,"1,080.00",Revenue,Les Mills Fitness UK LTD,132968
South Ribble Council,http://statistics.data.gov.uk/doc/local-authority/30UN,Area 3 - Parks/Leyland East West,External Contractors Charges,4570,ADJUSTMENTS TO GATES AT WORDEN PARK,07/04/2020,0000454325,195.00,Revenue,Leyland Lane Wrought Iron Gates & Railings,132012
South Ribble Council,http://statistics.data.gov.uk/doc/local-authority/30UN,Area 3 - Parks/Leyland East West,External Contractors Charges,4570,"2NO. TRASH SCREENS AT SLATER LANE, MOSS SIDE",07/04/2020,0000454325,680.00,Revenue,Leyland Lane Wrought Iron Gates & Railings,132012
South Ribble Council,http://statistics.data.gov.uk/doc/local-authority/30UN,Scrutiny,Subs to Statutory Bodies,4720,LGA MEMBERSHIP SUBSCRIPTION RENEWAL FOR 2020-2021,22/04/2020,0000454996,"10,939.50",Revenue,LGA (LOCAL GOVERNMENT ASSOCIATION),00042851
South Ribble Council,http://statistics.data.gov.uk/doc/local-authority/30UN,HR & Communications,Peripherals,4269,10 x Openscape CP205 handsets @ 86.66 each and 15 x Jabra Biz 1500 mono with bottom cables @ 55.00 each,07/04/2020,0000454320,"1,909.70",Revenue,Lloyds-IP t/a Lloyds Business Communications Ltd,132971
South Ribble Council,http://statistics.data.gov.uk/doc/local-authority/30UN,Housing,Cap Grant- Improve Grants,C570,DFG WORKS TO BATHROOM AT ADDRESS REDACTED AS PER QUOTE SUPPLIED OF 3200.00 COST 3200.00,03/04/2020,0000454255,"3,200.00",Revenue,LTL CONSTRUCTION & MAINTENANCE LTD,131406
South Ribble Council,http://statistics.data.gov.uk/doc/local-authority/30UN,Housing,Cap Grant- Improve Grants,C570,"DFG WORKS FOR LEVEL ACCESS BATHROOM AT ADDRESS REDACTED. New progress 50%  of 5818.22, 50%  grant is 2909.11",07/04/2020,0000454256,"2,909.11",Revenue,MAHONEY CONTRACTORS LTD,131271
South Ribble Council,http://statistics.data.gov.uk/doc/local-authority/30UN,Housing,Cap Grant- Improve Grants,C570,DFG WORKS  LEVEL ACCESS BATHROOM AT ADDRESS REDACTED. New progress - 50% of quote of 5847.71 paid via grant is 2923.86,07/04/2020,0000454257,"2,923.86",Revenue,MAHONEY CONTRACTORS LTD,131271
South Ribble Council,http://statistics.data.gov.uk/doc/local-authority/30UN,Housing,Cap Grant- Improve Grants,C570,DFG WORKS FOR LEVEL ACCESS BATHROOM AT ADDRESS REDACTED. New progress - 50%  of quote 5750.42 paid via grant is 2875.21,07/04/2020,0000454258,"2,875.21",Revenue,MAHONEY CONTRACTORS LTD,131271
South Ribble Council,http://statistics.data.gov.uk/doc/local-authority/30UN,Housing,Cap Grant- Improve Grants,C570,DFG WORKS FOR LEVEL ACCESS BATHROOM AT ADDRESS REDACTED. New progress - 50%  of quote 5887.86 paid via grant is 2943.93,07/04/2020,0000454259,"2,943.93",Revenue,MAHONEY CONTRACTORS LTD,131271
South Ribble Council,http://statistics.data.gov.uk/doc/local-authority/30UN,Housing,Cap Grant- Improve Grants,C570,DFG WORKS FOR LEVEL ACCESS BATHROOM AT ADDRESS REDACTED. New progress - 50% of quote 6043.54 paid via grant is 3021.77,07/04/2020,0000454260,"3,021.77",Revenue,MAHONEY CONTRACTORS LTD,131271
South Ribble Council,http://statistics.data.gov.uk/doc/local-authority/30UN,Housing,Cap Grant- Improve Grants,C570,DFG WORKS FOR LEVEL ACCESS BATHROOM AT ADDRESS REDACTED. New progress - 50%  of quote 3619.72 paid via grant is 1809.86,07/04/2020,0000454278,"1,809.86",Revenue,MAHONEY CONTRACTORS LTD,131271
South Ribble Council,http://statistics.data.gov.uk/doc/local-authority/30UN,Housing,Cap Grant- Improve Grants,C570,DFG WORKS FOR LEVEL ACCESS BATHROOM AT ADDRESS REDACTED. New progress - 50%  of quote 5359.50 paid via grant is 2679.75,07/04/2020,0000454360,"2,679.75",Revenue,MAHONEY CONTRACTORS LTD,131271
South Ribble Council,http://statistics.data.gov.uk/doc/local-authority/30UN,Housing,Cap Grant- Improve Grants,C570,DFG WORKS FOR LEVEL ACCESS BATHROOM AT ADDRESS REDACTED. New progress - 50%  of quote 9471.32 paid via grant is 4735.66,07/04/2020,0000454361,"4,735.66",Revenue,MAHONEY CONTRACTORS LTD,131271
South Ribble Council,http://statistics.data.gov.uk/doc/local-authority/30UN,Housing,Cap Grant- Improve Grants,C570,DFG WORKS FOR LEVEL ACCESS BATHROOM AT ADDRESS REDACTED. New progress - 50%  of quote 6193.32 paid via grant is 3096.66,15/04/2020,0000455044,"3,096.66",Revenue,MAHONEY CONTRACTORS LTD,131271
South Ribble Council,http://statistics.data.gov.uk/doc/local-authority/30UN,Housing,Cap Grant- Improve Grants,C570,DFG WORKS FOR LEVEL ACCESS BATHROOM AT ADDRESS REDACTED New progress - 50%  of quote 9755.20 paid via grant is 4877.60,22/04/2020,0000455539,"1,440.00",Revenue,MAHONEY CONTRACTORS LTD,131271
South Ribble Council,http://statistics.data.gov.uk/doc/local-authority/30UN,Information Services,Peripherals,4269,"10 x OSCC licenses, config, Project co-ordination and annual support costs, as per quote ref: 0066662",22/04/2020,0000455477,"5,700.00",Revenue,Maintel Europe Ltd,132500
South Ribble Council,http://statistics.data.gov.uk/doc/local-authority/30UN,Property Services,Rep & Maint Fixed Plant,2035,2020 / 2021 annual fees for the maintenance of the intruder alarm at Longton Brickcroft,07/04/2020,0000454067,250.00,Revenue,Marlowe Fire & Security,132473
South Ribble Council,http://statistics.data.gov.uk/doc/local-authority/30UN,Property Services,Rep & Maint Fixed Plant,2035,2020 / 2021 annual fees for the monitoring of the redcare line at Longton Brickcroft,07/04/2020,0000454067,350.00,Revenue,Marlowe Fire & Security,132473
South Ribble Council,http://statistics.data.gov.uk/doc/local-authority/30UN,Area 2 - Waste Transport/Eastern & Central Teams,External Contractors Charges,4570,1 recovery - Fir Tree Close Chorley VU11 HSZ JFC14481,24/04/2020,0000455729,343.50,Revenue,MILLERS OF LONGTON LTD,00028642
South Ribble Council,http://statistics.data.gov.uk/doc/local-authority/30UN,Development Enterprise & Comm Mgnt,Training Expense-Course Fees,1402,2 X LANTRA Basic Tree Inspection 24th March 2020,07/04/2020,0000453930,424.00,Revenue,Millhouse Training Ltd,131506
South Ribble Council,http://statistics.data.gov.uk/doc/local-authority/30UN,Area 2 - Waste Transport/Eastern & Central Teams,Materials General,4040,SUPPLY AND FIT CAMERA VU11 HSZ JFC14388,07/04/2020,0000454018,320.00,Revenue,MJC Auto Electrics,132514
South Ribble Council,http://statistics.data.gov.uk/doc/local-authority/30UN,HR & Communications,Training Expense-Course Fees,1402,`TRAIN THE TRAINER`COURSE X 2  DELEGATES: NAMES REDACTED DATES: 11 & 12 MARCH 2020 IN MANCHESTER,09/04/2020,0000454536,"1,500.00",Revenue,MLP TRAINING,133029
South Ribble Council,http://statistics.data.gov.uk/doc/local-authority/30UN,Area 1 - Penwortham Western Parishes,Professional Fees,4521,underpayment sept 2019 & none paid in nov 2019,07/04/2020,0000454219,658.68,Revenue,MORNINGSIDE KENNELS,00067755
South Ribble Council,http://statistics.data.gov.uk/doc/local-authority/30UN,Area 3 - Parks/Leyland East West,Grounds Maint Cntrctrs Chgs,4657,,09/04/2020,0000454664,"1,755.00",Revenue,MORRAL PLAY SERVICES LTD,130490
South Ribble Council,http://statistics.data.gov.uk/doc/local-authority/30UN,HR & Communications,Training Expense-Course Fees,1403,1 x City & Guilds NPTC Level 3 Award in Felling & Processing Tree`s over 380mm Delegate: NAME REDACTED Date/s: 08/06/2020 - 10/06/2020,09/04/2020,0000454019,580.00,Revenue,MYERSCOUGH COLLEGE,00026453
South Ribble Council,http://statistics.data.gov.uk/doc/local-authority/30UN,Healthy Communities,Other Misc,4851,"2 x Apple 11-inch iPad Pro Wi-Fi + Cellular 2 x  iPad Pro 11 Smart Keyboard Folio-GBR 1 Delivery  10.00  10.00 TOTAL -  2,251.20",07/04/2020,0000454306,"1,876.00",Revenue,MYPREMIER LTD,130091
South Ribble Council,http://statistics.data.gov.uk/doc/local-authority/30UN,Information Services,Peripherals,4241,"14 x Apple 11-inch iPad Pro Wi-Fi + Cellular , 14 x iPad Pro 11 Smart Keyboard Folio-GBR , Delivery 10.00, as per quote 186827",09/04/2020,0000454350,"9,330.00",Revenue,MYPREMIER LTD,130091
South Ribble Council,http://statistics.data.gov.uk/doc/local-authority/30UN,Area 2 - Waste Transport/Eastern & Central Teams,External Contractors Charges,4570,Steam Clean VO65 KRE JFC14438,07/04/2020,0000454291,65.00,Revenue,NAYLORS TRANSPORT (LEYLAND) ltd,00114828
South Ribble Council,http://statistics.data.gov.uk/doc/local-authority/30UN,Area 2 - Waste Transport/Eastern & Central Teams,External Contractors Charges,4570,Steam Clean RV14 DTZ JFC14439,07/04/2020,0000454291,65.00,Revenue,NAYLORS TRANSPORT (LEYLAND) ltd,00114828
South Ribble Council,http://statistics.data.gov.uk/doc/local-authority/30UN,Area 2 - Waste Transport/Eastern & Central Teams,External Contractors Charges,4570,Steam Clean MX04 YNL JFC14440,07/04/2020,0000454291,65.00,Revenue,NAYLORS TRANSPORT (LEYLAND) ltd,00114828
South Ribble Council,http://statistics.data.gov.uk/doc/local-authority/30UN,Area 2 - Waste Transport/Eastern & Central Teams,External Contractors Charges,4570,Steam Clean PJ62 UCM JFC14441,07/04/2020,0000454291,65.00,Revenue,NAYLORS TRANSPORT (LEYLAND) ltd,00114828
South Ribble Council,http://statistics.data.gov.uk/doc/local-authority/30UN,Area 2 - Waste Transport/Eastern & Central Teams,External Contractors Charges,4570,Steam Clean  VK09 AHJ JFC14442,07/04/2020,0000454291,65.00,Revenue,NAYLORS TRANSPORT (LEYLAND) ltd,00114828
South Ribble Council,http://statistics.data.gov.uk/doc/local-authority/30UN,Area 2 - Waste Transport/Eastern & Central Teams,External Contractors Charges,4570,Steam Clean VO65KPX JFC14443,07/04/2020,0000454291,65.00,Revenue,NAYLORS TRANSPORT (LEYLAND) ltd,00114828
South Ribble Council,http://statistics.data.gov.uk/doc/local-authority/30UN,Area 2 - Waste Transport/Eastern & Central Teams,External Contractors Charges,4570,Steam Clean PJ62 UCG JFC14444,07/04/2020,0000454291,65.00,Revenue,NAYLORS TRANSPORT (LEYLAND) ltd,00114828
South Ribble Council,http://statistics.data.gov.uk/doc/local-authority/30UN,Area 2 - Waste Transport/Eastern & Central Teams,External Contractors Charges,4570,Steam Clean VO65KRD JFC04446,07/04/2020,0000454291,65.00,Revenue,NAYLORS TRANSPORT (LEYLAND) ltd,00114828
South Ribble Council,http://statistics.data.gov.uk/doc/local-authority/30UN,Area 2 - Waste Transport/Eastern & Central Teams,External Contractors Charges,4570,Steam Clean YD19 AUM JFC14433  28.2.20,07/04/2020,0000454292,65.00,Revenue,NAYLORS TRANSPORT (LEYLAND) ltd,00114828
South Ribble Council,http://statistics.data.gov.uk/doc/local-authority/30UN,Area 2 - Waste Transport/Eastern & Central Teams,External Contractors Charges,4570,Steam Clean YA19 NGN JFC14434,07/04/2020,0000454292,65.00,Revenue,NAYLORS TRANSPORT (LEYLAND) ltd,00114828
South Ribble Council,http://statistics.data.gov.uk/doc/local-authority/30UN,Area 2 - Waste Transport/Eastern & Central Teams,External Contractors Charges,4570,Steam Clean YA19 NKD JFC14435,07/04/2020,0000454292,65.00,Revenue,NAYLORS TRANSPORT (LEYLAND) ltd,00114828
South Ribble Council,http://statistics.data.gov.uk/doc/local-authority/30UN,Area 2 - Waste Transport/Eastern & Central Teams,External Contractors Charges,4570,Steam Clean YA19 NJZ JFC14436,07/04/2020,0000454292,65.00,Revenue,NAYLORS TRANSPORT (LEYLAND) ltd,00114828
South Ribble Council,http://statistics.data.gov.uk/doc/local-authority/30UN,Area 2 - Waste Transport/Eastern & Central Teams,External Contractors Charges,4570,Steam Clean VU60 HLE JFC14437,07/04/2020,0000454292,65.00,Revenue,NAYLORS TRANSPORT (LEYLAND) ltd,00114828
South Ribble Council,http://statistics.data.gov.uk/doc/local-authority/30UN,Development Enterprise & Comm Mgnt,Other Misc,485I,"Website licence and hosting costs for VisitLeyland 2020-  2021, CMS Licence: (April 20 � Mar 21), Hosting: (Apr 20 � Mar 21) Total: 1890 + VAT",07/04/2020,0000454020,"1,890.00",Revenue,NEW MIND INTERNET CONSULTANCY LTD,00083328
South Ribble Council,http://statistics.data.gov.uk/doc/local-authority/30UN,Area 1 - Penwortham Western Parishes,Professional Fees,4514,DEPLOYMENT OF OFFICERS MARCH 2020,09/04/2020,0000454530,"1,293.07",Revenue,NSL LTD,00116868
South Ribble Council,http://statistics.data.gov.uk/doc/local-authority/30UN,Area 1 - Penwortham Western Parishes,Other Misc,4855,CASH COLLECTION AND RINGO CHARGES MARCH 2020,09/04/2020,0000454530,460.44,Revenue,NSL LTD,00116868
South Ribble Council,http://statistics.data.gov.uk/doc/local-authority/30UN,Area 1 - Penwortham Western Parishes,Other Misc,4855,RINGO CONVENIENCE CHARGE MARCH 2020,09/04/2020,0000454530,184.09,Revenue,NSL LTD,00116868
South Ribble Council,http://statistics.data.gov.uk/doc/local-authority/30UN,Information Services,Peripherals,4247,Northbridge 100 Emergency NetConnect Licences (3 Months) 1500.00,07/04/2020,0000454315,"1,500.00",Revenue,NVIRON LTD,00028781
South Ribble Council,http://statistics.data.gov.uk/doc/local-authority/30UN,HR & Communications,Peripherals,4247,"2yr UCC Certificate - 14 Domains @ 599.00, plus installation @ 100.00, for period 26/03/20 - 25/03/22",07/04/2020,0000454316,699.00,Revenue,NVIRON LTD,00028781
South Ribble Council,http://statistics.data.gov.uk/doc/local-authority/30UN,Information Services,Peripherals,4247,"Netilla/Vasco Consultancy, as per quote",07/04/2020,0000454322,490.00,Revenue,NVIRON LTD,00028781
South Ribble Council,http://statistics.data.gov.uk/doc/local-authority/30UN,Democratic Services,Training Expense-Course Fees,1406,CLLR NAME REDACTED TO ATTEND `THE EFFECTIVE AUDIT AND RISK COMMITTEE` ON 12 MARCH 2020 IN CENTRAL MANCHESTER,09/04/2020,0000453794,295.00,Revenue,ON BOARD TRAINING AND CONSULTANCY LTD,133056
South Ribble Council,http://statistics.data.gov.uk/doc/local-authority/30UN,Regeneration,Other Misc,4851,Food and Toiletries Supply as part of the Coronavirus Action Plan,22/04/2020,0000455543,"4,101.16",Revenue,Oncore Trading,133077
South Ribble Council,http://statistics.data.gov.uk/doc/local-authority/30UN,HR & Communications,Training Expense-Course Fees,1406,TO PROVIDE SAFEGUARDING TRAINING FOR STAFF ON 31 JANUARY 2020 (TWO SESSIONS),09/04/2020,0000454525,600.00,Revenue,P THRELFALL SAFEGUARDING LTD,130382
South Ribble Council,http://statistics.data.gov.uk/doc/local-authority/30UN,Healthy Communities,Operational Furniture & Equip,4010,HN204 - OPEN TOILET BRUSH SET 44CM WHITE,07/04/2020,0000453286,6.40,Revenue,Pattersons (Bristol) Ltd,132621
South Ribble Council,http://statistics.data.gov.uk/doc/local-authority/30UN,Healthy Communities,Operational Furniture & Equip,4010,BB070-5 - JANGRO DISHWASH DETERGENT FOR HARD WATER   5 LTR,07/04/2020,0000453286,26.46,Revenue,Pattersons (Bristol) Ltd,132621
South Ribble Council,http://statistics.data.gov.uk/doc/local-authority/30UN,Healthy Communities,Operational Furniture & Equip,4010,BA010-5 - JANGRO MULTI-PURPOSE CLEANER CONCENTRATED 5LTR,07/04/2020,0000453286,42.00,Revenue,Pattersons (Bristol) Ltd,132621
South Ribble Council,http://statistics.data.gov.uk/doc/local-authority/30UN,Healthy Communities,Operational Furniture & Equip,4010,BC015-75 - JANGRO THICKENED BLEACH 750ML,07/04/2020,0000453286,6.00,Revenue,Pattersons (Bristol) Ltd,132621
South Ribble Council,http://statistics.data.gov.uk/doc/local-authority/30UN,Healthy Communities,Operational Furniture & Equip,4010,AA201 - JANGRO MICRO MINI TOILET ROLL 100M X 90MM (24),07/04/2020,0000453286,105.90,Revenue,Pattersons (Bristol) Ltd,132621
South Ribble Council,http://statistics.data.gov.uk/doc/local-authority/30UN,Healthy Communities,Operational Furniture & Equip,4010,CG106-Y - EXEL MICROFIBRE SUPER CLOTH (Pack of 10),07/04/2020,0000453286,7.80,Revenue,Pattersons (Bristol) Ltd,132621
South Ribble Council,http://statistics.data.gov.uk/doc/local-authority/30UN,Healthy Communities,Operational Furniture & Equip,4010,CG106-B - EXEL MICROFIBRE SUPER CLOTH 40X 40CM BLUE (Pack of 10),07/04/2020,0000453286,7.80,Revenue,Pattersons (Bristol) Ltd,132621
South Ribble Council,http://statistics.data.gov.uk/doc/local-authority/30UN,Healthy Communities,Operational Furniture & Equip,4010,AE234 - TORK S-FOLD HAND TOWEL 1PLY BLUE (4000SHT),07/04/2020,0000453286,132.50,Revenue,Pattersons (Bristol) Ltd,132621
South Ribble Council,http://statistics.data.gov.uk/doc/local-authority/30UN,Healthy Communities,Operational Furniture & Equip,4010,BC045-1 - JANGRO TOILET & WASHROOM CLEANER DESCALER  1 LTR,07/04/2020,0000453286,18.80,Revenue,Pattersons (Bristol) Ltd,132621
South Ribble Council,http://statistics.data.gov.uk/doc/local-authority/30UN,Healthy Communities,Operational Furniture & Equip,4010,"HL085 - ERASE ALL PADS, WHITE (Pack of 10)",07/04/2020,0000453286,6.90,Revenue,Pattersons (Bristol) Ltd,132621
South Ribble Council,http://statistics.data.gov.uk/doc/local-authority/30UN,Healthy Communities,Operational Furniture & Equip,4010,BK101-5 - JANGRO PINK PEARLISED HAND SOAP 5LTR,07/04/2020,0000453286,21.60,Revenue,Pattersons (Bristol) Ltd,132621
South Ribble Council,http://statistics.data.gov.uk/doc/local-authority/30UN,Healthy Communities,Operational Furniture & Equip,4010,BB034-5 - JANGRO CONCENTRATED GREEN DETERGENT 20% 5LTR,07/04/2020,0000453286,13.20,Revenue,Pattersons (Bristol) Ltd,132621
South Ribble Council,http://statistics.data.gov.uk/doc/local-authority/30UN,Healthy Communities,Cleaning and Domestic Supplies,2711,"HN204	OPEN TOILET BRUSH SET 44CM WHITE",07/04/2020,0000453870,6.40,Revenue,Pattersons (Bristol) Ltd,132621
South Ribble Council,http://statistics.data.gov.uk/doc/local-authority/30UN,Healthy Communities,Cleaning and Domestic Supplies,2711,"BB070-5	JANGRO DISHWASH DETERGENT FOR HARD WATER   5 LTR",07/04/2020,0000453870,26.46,Revenue,Pattersons (Bristol) Ltd,132621
South Ribble Council,http://statistics.data.gov.uk/doc/local-authority/30UN,Healthy Communities,Cleaning and Domestic Supplies,2711,"BA010-5	JANGRO MULTI-PURPOSE CLEANER CONCENTRATED 5LTR",07/04/2020,0000453870,26.25,Revenue,Pattersons (Bristol) Ltd,132621
South Ribble Council,http://statistics.data.gov.uk/doc/local-authority/30UN,Healthy Communities,Cleaning and Domestic Supplies,2711,"BC015-75	JANGRO THICKENED BLEACH 750ML",07/04/2020,0000453870,12.00,Revenue,Pattersons (Bristol) Ltd,132621
South Ribble Council,http://statistics.data.gov.uk/doc/local-authority/30UN,Healthy Communities,Cleaning and Domestic Supplies,2711,"AA201	JANGRO MICRO MINI TOILET ROLL 100M X 90MM (24 PACK)",07/04/2020,0000453870,211.80,Revenue,Pattersons (Bristol) Ltd,132621
South Ribble Council,http://statistics.data.gov.uk/doc/local-authority/30UN,Healthy Communities,Cleaning and Domestic Supplies,2711,"CG106-Y	EXEL MICROFIBRE SUPER CLOTH (10 PACK)",07/04/2020,0000453870,7.80,Revenue,Pattersons (Bristol) Ltd,132621
South Ribble Council,http://statistics.data.gov.uk/doc/local-authority/30UN,Healthy Communities,Cleaning and Domestic Supplies,2711,"CG106-B	EXEL MICROFIBRE SUPER CLOTH 40X 40CM BLUE (10 PACK)",07/04/2020,0000453870,7.80,Revenue,Pattersons (Bristol) Ltd,132621
South Ribble Council,http://statistics.data.gov.uk/doc/local-authority/30UN,Healthy Communities,Cleaning and Domestic Supplies,2711,"BD040-5	JANGRO LEMON FLOOR GEL 5LTR *S",07/04/2020,0000453870,17.80,Revenue,Pattersons (Bristol) Ltd,132621
South Ribble Council,http://statistics.data.gov.uk/doc/local-authority/30UN,Healthy Communities,Cleaning and Domestic Supplies,2711,"AE234	TORK S-FOLD HAND TOWEL 1PLY BLUE (4000SHT)",07/04/2020,0000453870,132.50,Revenue,Pattersons (Bristol) Ltd,132621
South Ribble Council,http://statistics.data.gov.uk/doc/local-authority/30UN,Healthy Communities,Cleaning and Domestic Supplies,2711,"BC045-1	JANGRO TOILET & WASHROOM CLEANER DESCALER  1 LTR",07/04/2020,0000453870,33.84,Revenue,Pattersons (Bristol) Ltd,132621
South Ribble Council,http://statistics.data.gov.uk/doc/local-authority/30UN,Healthy Communities,Cleaning and Domestic Supplies,2711,"BG040-FL	JANRO AIR FRESHENER AEROSOL FRESH LINEN 400ML",07/04/2020,0000453870,10.32,Revenue,Pattersons (Bristol) Ltd,132621
South Ribble Council,http://statistics.data.gov.uk/doc/local-authority/30UN,Healthy Communities,Cleaning and Domestic Supplies,2711,"HL085	ERASE ALL PADS, WHITE (10 PACK)",07/04/2020,0000453870,6.90,Revenue,Pattersons (Bristol) Ltd,132621
South Ribble Council,http://statistics.data.gov.uk/doc/local-authority/30UN,Healthy Communities,Cleaning and Domestic Supplies,2711,"BB034-5	JANGRO CONCENTRATED GREEN DETERGENT 20% 5LTR",07/04/2020,0000453870,26.40,Revenue,Pattersons (Bristol) Ltd,132621
South Ribble Council,http://statistics.data.gov.uk/doc/local-authority/30UN,Healthy Communities,Cleaning and Domestic Supplies,2711,BA050-5     Jangro Cleaner Disinfectant 5ltr,07/04/2020,0000453870,140.16,Revenue,Pattersons (Bristol) Ltd,132621
South Ribble Council,http://statistics.data.gov.uk/doc/local-authority/30UN,Healthy Communities,Cleaning and Domestic Supplies,2711,FS0412     Jangro Blue Professional Mop Bucket & Wringer 15ltr,07/04/2020,0000453870,46.55,Revenue,Pattersons (Bristol) Ltd,132621
South Ribble Council,http://statistics.data.gov.uk/doc/local-authority/30UN,Healthy Communities,Cleaning and Domestic Supplies,2711,FS0411     Jangro Red Professional Mop Bucket & Wringer 15ltr,07/04/2020,0000453870,55.86,Revenue,Pattersons (Bristol) Ltd,132621
South Ribble Council,http://statistics.data.gov.uk/doc/local-authority/30UN,Area 2 - Waste Transport/Eastern & Central Teams,Cap Vehicles,C440,Peugeot L4H3 Boxer 435 Blue HDi 140 S&S 6-speed manual Professional. As per CCS RM6060 framework & confirmed quote dated 16/12/2019,07/04/2020,0000453990,"17,881.05",Revenue,Pentagon Corporate Fleet,132191
South Ribble Council,http://statistics.data.gov.uk/doc/local-authority/30UN,Area 2 - Waste Transport/Eastern & Central Teams,Cap Vehicles,C440,fees,07/04/2020,0000453990,315.00,Revenue,Pentagon Corporate Fleet,132191
South Ribble Council,http://statistics.data.gov.uk/doc/local-authority/30UN,HR & Communications,Training Expense-Course Fees,1408,1 x Fit4Jobs Management Telephone Referral NAME REDACTED 03.03.20,07/04/2020,0000453729,87.00,Revenue,People Asset Management,132492
South Ribble Council,http://statistics.data.gov.uk/doc/local-authority/30UN,HR & Communications,Training Expense-Course Fees,1408,2 x HAVS Tier 4 OHP NAME REDACTED 03.03.20 NAME REDACTED 03.03.20,07/04/2020,0000453729,340.00,Revenue,People Asset Management,132492
South Ribble Council,http://statistics.data.gov.uk/doc/local-authority/30UN,HR & Communications,Training Expense-Course Fees,1408,"12 X HAVS TIER 2 PAPER SCREEN, 1 X TELEPHONE/VIDEO CONSULTATION OHA (60), 1 X TELEPHONE /VIDEO CONSULTATION OHA ",09/04/2020,0000454518,288.00,Revenue,People Asset Management,132492
South Ribble Council,http://statistics.data.gov.uk/doc/local-authority/30UN,HR & Communications,Training Expense-Course Fees,1408,,09/04/2020,0000454518,274.00,Revenue,People Asset Management,132492
South Ribble Council,http://statistics.data.gov.uk/doc/local-authority/30UN,HR & Communications,Training Expense-Course Fees,1408,7 X HAVES TIER 2 PAPER SCFREEN @ 24.00 1 X MASTER APP FULL DAY (OHN) 3/3/20 @ 322.00,09/04/2020,0000454652,490.00,Revenue,People Asset Management,132492
South Ribble Council,http://statistics.data.gov.uk/doc/local-authority/30UN,HR & Communications,Training Expense-Course Fees,1408,21 x HAV TIER 2 SCREEN - 9/3/20 @ 24.00,09/04/2020,0000454653,504.00,Revenue,People Asset Management,132492
South Ribble Council,http://statistics.data.gov.uk/doc/local-authority/30UN,Environmental Health,Professional Fees,4522,gov fee,15/04/2020,0000454450,616.00,Revenue,Personnel Checks,132574
South Ribble Council,http://statistics.data.gov.uk/doc/local-authority/30UN,Environmental Health,Professional Fees,4522,enhanced gov fee,15/04/2020,0000454450,800.00,Revenue,Personnel Checks,132574
South Ribble Council,http://statistics.data.gov.uk/doc/local-authority/30UN,Environmental Health,Professional Fees,4522,admin fee,15/04/2020,0000454450,453.22,Revenue,Personnel Checks,132574
South Ribble Council,http://statistics.data.gov.uk/doc/local-authority/30UN,Property Services,Operational Furniture & Equip,4012,"2020 / 2021 contract for the provision of sanitary services at Moss Side Depot, Bison Place, Leyland",24/04/2020,0000454064,410.88,Revenue,PHS GROUP PLC,00031309
South Ribble Council,http://statistics.data.gov.uk/doc/local-authority/30UN,Property Services,Operational Furniture & Equip,4012,2020 / 2021 contract for the provision of sanitary services at the Civic Centre,24/04/2020,0000454065,982.31,Revenue,PHS GROUP PLC,00031309
South Ribble Council,http://statistics.data.gov.uk/doc/local-authority/30UN,Area 2 - Waste Transport/Eastern & Central Teams,Materials General,4040,Type 32 Hydraulic Oil - 1100 litres,29/04/2020,0000455806,840.64,Revenue,PILKINGTON OILS,00113531
South Ribble Council,http://statistics.data.gov.uk/doc/local-authority/30UN,HR & Communications,Training Expense-Course Fees,1405,cousre to be rearranged ok to force through per NAME REDACTED,24/04/2020,0000454025,990.00,Revenue,POTENTIAL UNEARTHED LTD,132918
South Ribble Council,http://statistics.data.gov.uk/doc/local-authority/30UN,Property Services,Other Misc,4851,Please supply Hand Sanitizer Spray Bottle 417054   500 ml qty 240 @15.82 each as per NAME REDACTED,22/04/2020,0000454982,"3,796.80",Revenue,PREMIER OFFICE SUPPLES (UK) LTD,00090159
South Ribble Council,http://statistics.data.gov.uk/doc/local-authority/30UN,Scrutiny,Consultancy Fees,4541,"HIRE OF CHURCH HALL, STALLS AT EVENTS, SAMPLES, GIFTS, WEBSITE FEES, INS POLICY 2019, WITH PRESTON CITY COUNCIL.",15/04/2020,0000454985,558.05,Revenue,Preston & South Ribble Fairtrade Group,00096108
South Ribble Council,http://statistics.data.gov.uk/doc/local-authority/30UN,Democratic Services,Other Misc,4422,"Printing Job Ref: 6936 Description: 2020 PCC Vote-peel Connect PV Packs Qty: 18,500 Postal Votes",17/04/2020,0000454967,"10,554.00",Revenue,PRINT IMAGE NETWORK LTD,00089199
South Ribble Council,http://statistics.data.gov.uk/doc/local-authority/30UN,Democratic Services,Other Misc,4423,"85,500 POLL CARDS FOR PCC ELECTION - JOB NUMBER - 6892",17/04/2020,0000454968,"4,167.60",Revenue,PRINT IMAGE NETWORK LTD,00089199
South Ribble Council,http://statistics.data.gov.uk/doc/local-authority/30UN,Democratic Services,Other Misc,4421,Job Order Ref: 6963 Description: 2020PCC CNLs 2880 x Corresponding Number List,17/04/2020,0000454969,916.00,Revenue,PRINT IMAGE NETWORK LTD,00089199
South Ribble Council,http://statistics.data.gov.uk/doc/local-authority/30UN,Democratic Services,Other Misc,4421,Job Order Ref: 6960 Description: 2020 PCC Ballot Books 782 x Production of Ballot Books,17/04/2020,0000454970,"4,072.00",Revenue,PRINT IMAGE NETWORK LTD,00089199
South Ribble Council,http://statistics.data.gov.uk/doc/local-authority/30UN,Democratic Services,Other Misc,4421,Job Order Ref: 6961 Description: PCC Large Print B.Papers 80 x Large print ballot papers,17/04/2020,0000454971,300.00,Revenue,PRINT IMAGE NETWORK LTD,00089199
South Ribble Council,http://statistics.data.gov.uk/doc/local-authority/30UN,Democratic Services,Other Misc,4421,Order Ref No. 6962 Description: PCC Braille Ballot Papers to produce 62 x Braille Ballot Papers,17/04/2020,0000454972,300.00,Revenue,PRINT IMAGE NETWORK LTD,00089199
South Ribble Council,http://statistics.data.gov.uk/doc/local-authority/30UN,Democratic Services,Printing,4127,2020 PI Refresh Mailing 1 - (Approx. 600 records) Initial letter to electors advising of the requirement for a new signature,29/04/2020,0000455931,829.00,Revenue,PRINT IMAGE NETWORK LTD,00089199
South Ribble Council,http://statistics.data.gov.uk/doc/local-authority/30UN,Democratic Services,Printing,4127,2020 PI Refresh Mailing 2 - (Approx. 300 records) Reminder to those who have not responded to Mailing 1,29/04/2020,0000455931,325.00,Revenue,PRINT IMAGE NETWORK LTD,00089199
South Ribble Council,http://statistics.data.gov.uk/doc/local-authority/30UN,Democratic Services,Printing,4127,2020 PI Refresh Mailing 3 - (Approx. 150 records) Cancellation letter to those who have not responded to Mailing 1 and 2,29/04/2020,0000455931,300.00,Revenue,PRINT IMAGE NETWORK LTD,00089199
South Ribble Council,http://statistics.data.gov.uk/doc/local-authority/30UN,Information Services,Capital Expenditure,C234,MXE42B/A:  50 x Apple 11-inch iPad Pro Wi-Fi + Cellular - 2nd generation - tablet - 256 GB - 11 IPS (2388 x 1668) - 4G - LTE - space grey ,22/04/2020,0000455529,"39,471.00",Revenue,Probrand,133112
South Ribble Council,http://statistics.data.gov.uk/doc/local-authority/30UN,Homelessness,Professional Fees,4529,CONTROL CENTRE MONITORING 01.04.2020 - 31.03.2021 HOMELESS SERVICE,22/04/2020,0000455276,"4,063.09",Revenue,PROGRESS HOUSING GRP ref:DNSOU001,00030135
South Ribble Council,http://statistics.data.gov.uk/doc/local-authority/30UN,Property Services,Capital Expenditure,C230,"MATERIALS Please undertake works in the main room at  North Lodge, Worden Park as detailed in your quotation  ref LRSQ 2311",29/04/2020,0000454022,400.00,Revenue,PSR & Sons Joiners & Building Contractors,132887
South Ribble Council,http://statistics.data.gov.uk/doc/local-authority/30UN,Property Services,Capital Expenditure,C230,"MATERIALS Please undertake works in the kitchen area at  North Lodge, Worden Park as detailed in your quotation  ref LRSQ 2311",29/04/2020,0000454022,580.00,Revenue,PSR & Sons Joiners & Building Contractors,132887
South Ribble Council,http://statistics.data.gov.uk/doc/local-authority/30UN,Property Services,Capital Expenditure,C230,"MATERIALS Please undertake works to the back door at  North Lodge, Worden Park as detailed in your quotation  ref LRSQ 2311",29/04/2020,0000454022,"1,150.00",Revenue,PSR & Sons Joiners & Building Contractors,132887
South Ribble Council,http://statistics.data.gov.uk/doc/local-authority/30UN,Property Services,Capital Expenditure,C230,MATERIALS Please undertake works to 3 Farmyard Cottages Worden Park as detailed in your quotation  ref LRS Q 2312,29/04/2020,0000454022,250.00,Revenue,PSR & Sons Joiners & Building Contractors,132887
South Ribble Council,http://statistics.data.gov.uk/doc/local-authority/30UN,Property Services,Grounds Maint Cntrctrs Chgs,4657,"MATERIALS Please undertake works (x2) to area 3 in the derby wing, Worden Park as detailed in your quotation  ref LRSQ 2313",29/04/2020,0000454022,"5,000.00",Revenue,PSR & Sons Joiners & Building Contractors,132887
South Ribble Council,http://statistics.data.gov.uk/doc/local-authority/30UN,Property Services,Grounds Maint Cntrctrs Chgs,4657,MATERIALS Please undertake works in area 4 (external door) Derby wing Worden Park  as detailed in your quotation  ref LRSQ 2313,29/04/2020,0000454022,"1,500.00",Revenue,PSR & Sons Joiners & Building Contractors,132887
South Ribble Council,http://statistics.data.gov.uk/doc/local-authority/30UN,Property Services,Grounds Maint Cntrctrs Chgs,4657,"MATERIALS Please undertake works to the internal door to the derby wing, Worden Park as detailed in your quotation  ref LRS Q 2313",29/04/2020,0000454022,"1,500.00",Revenue,PSR & Sons Joiners & Building Contractors,132887
South Ribble Council,http://statistics.data.gov.uk/doc/local-authority/30UN,Property Services,Capital Expenditure,C230,LABOUR line 1,29/04/2020,0000454022,120.00,Revenue,PSR & Sons Joiners & Building Contractors,132887
South Ribble Council,http://statistics.data.gov.uk/doc/local-authority/30UN,Property Services,Capital Expenditure,C230,LABOUR line2,29/04/2020,0000454022,190.00,Revenue,PSR & Sons Joiners & Building Contractors,132887
South Ribble Council,http://statistics.data.gov.uk/doc/local-authority/30UN,Property Services,Capital Expenditure,C230,LABOUR line 3,29/04/2020,0000454022,115.00,Revenue,PSR & Sons Joiners & Building Contractors,132887
South Ribble Council,http://statistics.data.gov.uk/doc/local-authority/30UN,Property Services,Capital Expenditure,C230,LABOUR line 4,29/04/2020,0000454022,60.00,Revenue,PSR & Sons Joiners & Building Contractors,132887
South Ribble Council,http://statistics.data.gov.uk/doc/local-authority/30UN,Property Services,Grounds Maint Cntrctrs Chgs,4657,LABOUR line 5,29/04/2020,0000454022,200.00,Revenue,PSR & Sons Joiners & Building Contractors,132887
South Ribble Council,http://statistics.data.gov.uk/doc/local-authority/30UN,Property Services,Grounds Maint Cntrctrs Chgs,4657,LABOUR line 6,29/04/2020,0000454022,220.00,Revenue,PSR & Sons Joiners & Building Contractors,132887
South Ribble Council,http://statistics.data.gov.uk/doc/local-authority/30UN,Property Services,Grounds Maint Cntrctrs Chgs,4657,LABOUR line 7,29/04/2020,0000454022,120.00,Revenue,PSR & Sons Joiners & Building Contractors,132887
South Ribble Council,http://statistics.data.gov.uk/doc/local-authority/30UN,Information Services,Postage,4292,Franking machine annual Service Contract  02/04/20 - 01/04/21,09/04/2020,0000454307,"1,533.71",Revenue,Purchase Power,00093923
South Ribble Council,http://statistics.data.gov.uk/doc/local-authority/30UN,Information Services,Postage,4292,Mail underpayments,09/04/2020,0000454307,1.96,Revenue,Purchase Power,00093923
South Ribble Council,http://statistics.data.gov.uk/doc/local-authority/30UN,Healthy Communities,External Contractors Charges,4575,Breakfast butties @ 2.50 a head for 40 on 14th March at 10.30 Buffet @ 7 per head for 40 on 14th March at 13.00,07/04/2020,0000454348,380.00,Revenue,Purple Pig Caterers,132849
South Ribble Council,http://statistics.data.gov.uk/doc/local-authority/30UN,Area 3 - Parks/Leyland East West,Contract Hire & Lease Costs,3212,2 TONNE EXCAVATOR FOR 4 WEEKS @ 180.00 PER WEEK STARTING 19/02/2020,09/04/2020,0000454225,677.00,Revenue,Readyplant Limited,131535
South Ribble Council,http://statistics.data.gov.uk/doc/local-authority/30UN,Property Services,Rep & Maint Premises,2020,LABOUR po closed put through per NAME REDACTED,09/04/2020,0000454016,80.00,Revenue,RED ROSE BUILDING MAINTENANCE,00085410
South Ribble Council,http://statistics.data.gov.uk/doc/local-authority/30UN,Property Services,Rep & Maint Premises,2020,MATERIALS,09/04/2020,0000454016,220.00,Revenue,RED ROSE BUILDING MAINTENANCE,00085410
South Ribble Council,http://statistics.data.gov.uk/doc/local-authority/30UN,Property Services,Rep & Maint Premises,2020,"Re-stone path leading to the ice-cream kiosk - due to flooding and works recently done, path is muddy - as per complaints to NAME REDACTED",07/04/2020,0000454283,80.00,Revenue,RED ROSE BUILDING MAINTENANCE,00085410
South Ribble Council,http://statistics.data.gov.uk/doc/local-authority/30UN,Property Services,Rep & Maint Premises,2020,materials,07/04/2020,0000454283,220.00,Revenue,RED ROSE BUILDING MAINTENANCE,00085410
South Ribble Council,http://statistics.data.gov.uk/doc/local-authority/30UN,Homelessness,Contractors Charges 5,5311,"OSM payment Rent Apr, May and June 2020",07/04/2020,0000453866,"5,624.90",Revenue,REDDY & CO,00108177
South Ribble Council,http://statistics.data.gov.uk/doc/local-authority/30UN,Area 2 - Waste Transport/Eastern & Central Teams,External Contractors Charges,4570,REFURBISH HYDRAULIC RAM - PO13UUM - JFC14318,07/04/2020,0000453831,337.00,Revenue,Redgold Hydraulics (Standish) Ltd,132864
South Ribble Council,http://statistics.data.gov.uk/doc/local-authority/30UN,Regeneration,Other Misc,485R,Refund of Leyland Music Festival,24/04/2020,0000455009,280.00,Revenue,REFUND - NAME REDACTED,133105
South Ribble Council,http://statistics.data.gov.uk/doc/local-authority/30UN,Regeneration,Other Misc,485R,Refund of Leyland Music Festival,17/04/2020,0000455017,280.00,Revenue,REFUND - NAME REDACTED,133088
South Ribble Council,http://statistics.data.gov.uk/doc/local-authority/30UN,Regeneration,Other Misc,485R,Refund of Leyland Music Festival,17/04/2020,0000455021,420.00,Revenue,REFUND - NAME REDACTED,133109
South Ribble Council,http://statistics.data.gov.uk/doc/local-authority/30UN,Regeneration,Other Misc,485R,Refund of Leyland Music Festival,17/04/2020,0000455022,280.00,Revenue,REFUND - NAME REDACTED,133090
South Ribble Council,http://statistics.data.gov.uk/doc/local-authority/30UN,Regeneration,Other Misc,485R,Refund of Leyland Music Festival,17/04/2020,0000455023,280.00,Revenue,REFUND - NAME REDACTED,133087
South Ribble Council,http://statistics.data.gov.uk/doc/local-authority/30UN,Regeneration,Other Misc,485R,Refund of Leyland Music Festival,17/04/2020,0000455033,280.00,Revenue,REFUND - NAME REDACTED,133101
South Ribble Council,http://statistics.data.gov.uk/doc/local-authority/30UN,Environmental Health,Other Misc,4851,PO for Mediation Services from RIAH NAME REDACTED For 350 with reference to �REDACTED`` Per NAME REDACTED,24/04/2020,0000453104,600.00,Revenue,Restorative Approaches in Housing Ltd,132781
South Ribble Council,http://statistics.data.gov.uk/doc/local-authority/30UN,Area 2 - Waste Transport/Eastern & Central Teams,External Contractors Charges,4570,LIGHT REPAIR MX04YNL JFC 13454,07/04/2020,0000453649,260.80,Revenue,RIBBLESDALE AUTO ELECTRICS 1992 LTD,00033129
South Ribble Council,http://statistics.data.gov.uk/doc/local-authority/30UN,Legal,Legal,4821,PROVIDING ADVICE IN RELATION TO THE INVESTIGATION OF REDACTED SOUTH RIBBLE BOROUGH COUNCIL.,03/04/2020,0000453926,"3,264.95",Revenue,RICHARD PENN CONSULTANCY,133008
South Ribble Council,http://statistics.data.gov.uk/doc/local-authority/30UN,HR & Communications,Payroll Suspense,1741,"APC Enrolment Fee for NAME REDACTED 599.00,  2020 APC Candidate Subscription Fee 161.00 - membership number REDACTED",03/04/2020,0000454021,760.00,Revenue,RICS,00033307
South Ribble Council,http://statistics.data.gov.uk/doc/local-authority/30UN,HR & Communications,Training Expense-Course Fees,1402,NAME REDACTED TO ATTEND CYCLE TRAINING L2AICTR COURSE (4 DAY) - 9 MARCH 2020,15/04/2020,0000454994,"1,050.00",Revenue,RiderEvolution Ltd,132954
South Ribble Council,http://statistics.data.gov.uk/doc/local-authority/30UN,Area 2 - Waste Transport/Eastern & Central Teams,Contract Hire & Lease Costs,3212,Rental of RCV GN19 HDX 1.3.20 - 31.3.20,15/04/2020,0000454270,"3,938.00",Revenue,RIVERSIDE TRUCK RENTAL LTD,132867
South Ribble Council,http://statistics.data.gov.uk/doc/local-authority/30UN,Democratic Services,Other Misc,4422,RESPONSE PLUSE SERVICE - PARLIAMENTARY POSTAL VOTE RETURNS,15/04/2020,0000453361,"1,168.65",Revenue,ROYAL MAIL GROUP PLC,00033543
South Ribble Council,http://statistics.data.gov.uk/doc/local-authority/30UN,Information Services,Postage,4295,30 mar 2020,09/04/2020,0000454446,444.86,Revenue,ROYAL MAIL GROUP PLC,00033543
South Ribble Council,http://statistics.data.gov.uk/doc/local-authority/30UN,Area 2 - Waste Transport/Eastern & Central Teams,External Contractors Charges,4570,1 SPEC REPAIR VK09 AHJ JFC14432,17/04/2020,0000454344,"1,360.60",Revenue,RTS Muni,132454
South Ribble Council,http://statistics.data.gov.uk/doc/local-authority/30UN,Area 2 - Waste Transport/Eastern & Central Teams,External Contractors Charges,4570,1 SPEC REPAIR VK09 AHJ JFC14426,24/04/2020,0000455524,350.00,Revenue,RTS Muni,132454
South Ribble Council,http://statistics.data.gov.uk/doc/local-authority/30UN,Property Services,Capital Expenditure,C230,Consultancy support to deliver the planning application for McKenzie Arms,07/04/2020,0000453895,"9,000.00",Revenue,Sanderson Weatherall LLP,132534
South Ribble Council,http://statistics.data.gov.uk/doc/local-authority/30UN,Property Services,Professional Fees,4510,Review of SRBC Assets,15/04/2020,0000453994,"16,250.00",Revenue,Sanderson Weatherall LLP,132534
South Ribble Council,http://statistics.data.gov.uk/doc/local-authority/30UN,Property Services,Capital Expenditure,C230,Consultancy support to deliver the planning application for McKenzie Arms,15/04/2020,0000453996,"13,040.00",Revenue,Sanderson Weatherall LLP,132534
South Ribble Council,http://statistics.data.gov.uk/doc/local-authority/30UN,Information Services,Peripherals,4245,Generator Remedial Works as per quote ref. 37114,03/04/2020,0000454011,"1,236.00",Revenue,SECURE POWER LTD,131336
South Ribble Council,http://statistics.data.gov.uk/doc/local-authority/30UN,Democratic Services,Other Misc,4421,80 X PRESIDING OFFICER SUNDRY PACKS FOR THE PCC ELECTION ON 7 MAY 2020,07/04/2020,0000453604,"1,136.00",Revenue,SHAW & SONS LTD,00034542
South Ribble Council,http://statistics.data.gov.uk/doc/local-authority/30UN,Information Services,Professional Fees,4520,Shredding of Confidential Waste  3 February  to 31 March 2020,09/04/2020,0000454343,272.80,Revenue,SHRED-IT LTD,00109134
South Ribble Council,http://statistics.data.gov.uk/doc/local-authority/30UN,Planning,Operational Furniture & Equip,4010,Lease rental 14 Feb 2020 - 13 May 2020 for printers,15/04/2020,0000454305,995.61,Revenue,Siemens Financial Services Limited,133066
South Ribble Council,http://statistics.data.gov.uk/doc/local-authority/30UN,Regeneration,Other Misc,4851,PVC banner 2m x 660mm. Printed and eyeleted �  3 x Penwortham Live Banners 4 xPenwortham Live Venue Banners,07/04/2020,0000454010,250.00,Revenue,SIGNCRAFT,130512
South Ribble Council,http://statistics.data.gov.uk/doc/local-authority/30UN,Regeneration,Other Misc,4851,Please supply NAME REDACTED with Gloves PPE equipment for the Humanity Hub,07/04/2020,0000454318,282.00,Revenue,SMART IMAGE WORKWEAR,00031503
South Ribble Council,http://statistics.data.gov.uk/doc/local-authority/30UN,Homelessness,Other Misc,4851,Placement for NAME REDACTED 14 nights at Smithy Lodge Ongoing placement,09/04/2020,0000454537,350.00,Revenue,SMITHY LODGE GUEST HOUSE,130562
South Ribble Council,http://statistics.data.gov.uk/doc/local-authority/30UN,Homelessness,Other Misc,4851,Placement for NAME REDACTED 14 nights at Smithy Lodge Ongoing placement,09/04/2020,0000454538,350.00,Revenue,SMITHY LODGE GUEST HOUSE,130562
South Ribble Council,http://statistics.data.gov.uk/doc/local-authority/30UN,Information Services,Peripherals,4248,Cerberus FTP Server Professional Edition - Single Licence 1 Year Renewal by Cerberus 23/04/20 - 22/04/21,29/04/2020,0000455930,257.29,Revenue,SOFTCAT LIMITED,130963
South Ribble Council,http://statistics.data.gov.uk/doc/local-authority/30UN,Shared Financial Services,Balance Sheet,0030,monthly deductions  from payroll,22/04/2020,0000455439,"1,486.62",Revenue,SOUTH RIBBLE LABOUR PARTY LOCAL GOVERNM,00120663
South Ribble Council,http://statistics.data.gov.uk/doc/local-authority/30UN,HR & Communications,Training Expense-Course Fees,1403,NAME REDACTED TO DO ADSO CERTIFICATE IN DEMOCRATIC KNOWLEDGE COURSE TO START 1 MARCH 2020 - 1 AUGUST 2021,09/04/2020,0000453234,"1,140.00",Revenue,South West Councils,132737
South Ribble Council,http://statistics.data.gov.uk/doc/local-authority/30UN,Area 2 - Waste Transport/Eastern & Central Teams,External Contractors Charges,4570,SPEC REPAIR - VO65KRD - JFC14079,17/04/2020,0000454008,"1,387.50",Revenue,Southfield RCV Services Limited,132963
South Ribble Council,http://statistics.data.gov.uk/doc/local-authority/30UN,Area 2 - Waste Transport/Eastern & Central Teams,Materials General,4040,2 X PINS - BIN 1274,07/04/2020,0000454328,59.90,Revenue,SPALDINGS,00070849
South Ribble Council,http://statistics.data.gov.uk/doc/local-authority/30UN,Area 2 - Waste Transport/Eastern & Central Teams,Materials General,4040,1 X PINS - BIN1252,07/04/2020,0000454328,120.00,Revenue,SPALDINGS,00070849
South Ribble Council,http://statistics.data.gov.uk/doc/local-authority/30UN,Area 2 - Waste Transport/Eastern & Central Teams,Materials General,4040,4 x ROLLERS - BIN1268,07/04/2020,0000454328,299.16,Revenue,SPALDINGS,00070849
South Ribble Council,http://statistics.data.gov.uk/doc/local-authority/30UN,Area 2 - Waste Transport/Eastern & Central Teams,Materials General,4040,3 x TRACK ROD ENDS - BIN1107,07/04/2020,0000454328,89.25,Revenue,SPALDINGS,00070849
South Ribble Council,http://statistics.data.gov.uk/doc/local-authority/30UN,Neighbourhood Admin & Support,Materials General,4040,TYGRIS - 19115 ANTI BACTERIAL WIPES,07/04/2020,0000454330,550.08,Revenue,SPALDINGS,00070849
South Ribble Council,http://statistics.data.gov.uk/doc/local-authority/30UN,Shared Financial Services,Balance Sheet,0030,Monthly Deductions from Payroll,03/04/2020,0000453999,442.68,Revenue,ST CATHERINES HOSPICE PROMOTIONS LTD,00057749
South Ribble Council,http://statistics.data.gov.uk/doc/local-authority/30UN,Development Enterprise & Comm Mgnt,Other Misc,4851,credit to cancel invoice already taken,09/04/2020,0000454444,"1,066.00",Revenue,ST JOHNS AMBULANCE,00116253
South Ribble Council,http://statistics.data.gov.uk/doc/local-authority/30UN,Neighbourhood Admin & Support,Vehicle Running Costs,3132,17000 DIESEL @ 93.18ppl - INTO NEW FEEDER TANK  (REDACTED) ,07/04/2020,0000454055,"15,840.60",Revenue,Standard Fuel Oils LtdMain,131556
South Ribble Council,http://statistics.data.gov.uk/doc/local-authority/30UN,Neighbourhood Admin & Support,Vehicle Running Costs,3132,1500 litres  DIESEL @ 83.67ppl into the feeder tank at Moss Side Depot. (REDACTED),17/04/2020,0000455045,"12,650.90",Revenue,Standard Fuel Oils LtdMain,131556
South Ribble Council,http://statistics.data.gov.uk/doc/local-authority/30UN,Neighbourhood Admin & Support,Vehicle Running Costs,3132,15000 litres Diesel @ 84.04 ppl into the  Feeder Tank at Moss Side depot. (REDACTED) ,24/04/2020,0000455801,"12,606.00",Revenue,Standard Fuel Oils LtdMain,131556
South Ribble Council,http://statistics.data.gov.uk/doc/local-authority/30UN,Planning,Professional Fees,4510,Consultancy fees Towns fund,22/04/2020,0000455530,"8,959.00",Revenue,Steer Davies & Gleave Ltd,132998
South Ribble Council,http://statistics.data.gov.uk/doc/local-authority/30UN,Property Services,Rents,2401,"2019 / 2020 rental fees for Forward industrial estate, Talbot Road, Leyland PR25 2ZJ. Property Ref 2710/081",15/04/2020,0000454542,"16,147.50",Revenue,STONEWELL PROPERTY COMPANY LTD (In Administration),00118138
South Ribble Council,http://statistics.data.gov.uk/doc/local-authority/30UN,Property Services,Rents,2401,less ground rent,15/04/2020,0000454542,"-2,850.00",Revenue,STONEWELL PROPERTY COMPANY LTD (In Administration),00118138
South Ribble Council,http://statistics.data.gov.uk/doc/local-authority/30UN,Property Services,Rents,2401,25/12/19 to 24/03/20,29/04/2020,0000455874,"16,147.50",Revenue,STONEWELL PROPERTY COMPANY LTD (In Administration),00118138
South Ribble Council,http://statistics.data.gov.uk/doc/local-authority/30UN,Property Services,Rents,2401,less qtr rent,29/04/2020,0000455874,"-2,850.00",Revenue,STONEWELL PROPERTY COMPANY LTD (In Administration),00118138
South Ribble Council,http://statistics.data.gov.uk/doc/local-authority/30UN,Property Services,Rents,2401,CANCELLED OUT BY CREDIT C104,29/04/2020,0000455875,"16,148.00",Revenue,STONEWELL PROPERTY COMPANY LTD (In Administration),00118138
South Ribble Council,http://statistics.data.gov.uk/doc/local-authority/30UN,Area 3 - Parks/Leyland East West,Grounds Maint Cntrctrs Chgs,4657,"Ground investigations at Hurst Grange Park Playground, Penwortham, PR1 9BD within the areas per attached plan - Quotation E3877",07/04/2020,0000453746,745.00,Revenue,SUB SURFACE NORTH WEST LTD,00044079
South Ribble Council,http://statistics.data.gov.uk/doc/local-authority/30UN,Area 3 - Parks/Leyland East West,Grounds Maint Cntrctrs Chgs,4657,"Ground investigations at Hurst Grange Park Playground, Penwortham, PR1 9BD within the areas per attached plan - Quotation E3877",07/04/2020,0000454274,"2,214.00",Revenue,SUB SURFACE NORTH WEST LTD,00044079
South Ribble Council,http://statistics.data.gov.uk/doc/local-authority/30UN,Revenues Plus,Professional Fees,4520,NAFN Fees 2020/21,22/04/2020,0000453924,"1,600.00",Revenue,TAMESIDE METROPOLITAN BOROUGH COUNCIL,00037293
South Ribble Council,http://statistics.data.gov.uk/doc/local-authority/30UN,Information Services,Agency Fees,1121,"5 days Technical Support @ 375.00 per day, as per quote",09/04/2020,0000454230,"1,875.00",Revenue,TechAlign,132535
South Ribble Council,http://statistics.data.gov.uk/doc/local-authority/30UN,Information Services,Other Misc,4851,RDS Design Project as specified in quotation TALSRBCQ005,07/04/2020,0000454321,"1,600.00",Revenue,TechAlign,132535
South Ribble Council,http://statistics.data.gov.uk/doc/local-authority/30UN,Information Services,Other Misc,4851,Technical Support - Option 1 - as per quote ref:  TALSRBCQ006.2,09/04/2020,0000454445,950.00,Revenue,TechAlign,132535
South Ribble Council,http://statistics.data.gov.uk/doc/local-authority/30UN,Information Services,Other Misc,4851,Technical Support - Option 1 - as per quote ref:  TALSRBCQ006.2,24/04/2020,0000455540,950.00,Revenue,TechAlign,132535
South Ribble Council,http://statistics.data.gov.uk/doc/local-authority/30UN,Regeneration,Other Misc,4851,"Delivery of South Ribble Time Credits Program as per contract commencing 2nd March 2020 13,916.50 + VAT Period 1 2019-20",07/04/2020,0000454309,"13,916.50",Revenue,Tempo Time Credits Ltd,133067
South Ribble Council,http://statistics.data.gov.uk/doc/local-authority/30UN,Information Services,Peripherals,4248,1 year Browsealoud Subscription for period17/04/20 - 16/04/21,03/04/2020,0000454229,"1,495.00",Revenue,Texthelp,132822
South Ribble Council,http://statistics.data.gov.uk/doc/local-authority/30UN,Information Services,Peripherals,4241,"x1 HPE 5510 48 Port Switch with Power Supply, plus delivery, as per quote SQ106653",07/04/2020,0000454311,"2,607.04",Revenue,The Networking People (TNP) Ltd,132331
South Ribble Council,http://statistics.data.gov.uk/doc/local-authority/30UN,Information Services,Peripherals,4247,"1 x HPE 5510 48G PoE+ 4SFP+ HI Swch  and 2 x HPE X362 720W AC PoE Power Supply, delivery 15.00, as per quote ref. SQ106652",15/04/2020,0000454981,"2,876.52",Revenue,The Networking People (TNP) Ltd,132331
South Ribble Council,http://statistics.data.gov.uk/doc/local-authority/30UN,Property Services,Capital Expenditure,C234,Planning Inspector Costs,07/04/2020,0000454264,"6,757.25",Revenue,THE PLANNING INSPECTORATE,130664
South Ribble Council,http://statistics.data.gov.uk/doc/local-authority/30UN,Information Services,Publications,4142,schofields elec law,24/04/2020,0000455855,132.50,Revenue,THOMSON REUTERS,00034979
South Ribble Council,http://statistics.data.gov.uk/doc/local-authority/30UN,Information Services,Publications,4142,non vat,24/04/2020,0000455855,132.50,Revenue,THOMSON REUTERS,00034979
South Ribble Council,http://statistics.data.gov.uk/doc/local-authority/30UN,Legal,Publications,4142,aldridge R66,29/04/2020,0000455856,576.00,Revenue,THOMSON REUTERS,00034979
South Ribble Council,http://statistics.data.gov.uk/doc/local-authority/30UN,Homelessness,Contributions,4730,NAME REDACTED cash bond ADDRESS REDACTED 450.00,03/04/2020,0000453790,450.00,Revenue,NAME REDACTED,133060
South Ribble Council,http://statistics.data.gov.uk/doc/local-authority/30UN,Homelessness,Contributions,4730,NAME REDACTED rent in advance ADDRESS REDACTED 500.00 less applicants contribution of 142.16,03/04/2020,0000453790,357.84,Revenue,NAME REDACTED,133060
South Ribble Council,http://statistics.data.gov.uk/doc/local-authority/30UN,Property Services,Energy Costs,2303,1/3/20 to 31/3/20,09/04/2020,0000454519,"2,482.41",Revenue,Total Gas & power Ltd,132995
South Ribble Council,http://statistics.data.gov.uk/doc/local-authority/30UN,Property Services,Energy Costs,2307,CCL,09/04/2020,0000454519,145.08,Revenue,Total Gas & power Ltd,132995
South Ribble Council,http://statistics.data.gov.uk/doc/local-authority/30UN,Property Services,Energy Costs,2303,1/3/20 to 31/3/20,09/04/2020,0000454520,"3,701.42",Revenue,Total Gas & power Ltd,132995
South Ribble Council,http://statistics.data.gov.uk/doc/local-authority/30UN,Property Services,Energy Costs,2307,CCL,09/04/2020,0000454520,207.32,Revenue,Total Gas & power Ltd,132995
South Ribble Council,http://statistics.data.gov.uk/doc/local-authority/30UN,Property Services,Energy Costs,2303,1/3/20 to 31/3/20,09/04/2020,0000454521,"1,179.25",Revenue,Total Gas & power Ltd,132995
South Ribble Council,http://statistics.data.gov.uk/doc/local-authority/30UN,Property Services,Energy Costs,2307,CCL,09/04/2020,0000454521,57.74,Revenue,Total Gas & power Ltd,132995
South Ribble Council,http://statistics.data.gov.uk/doc/local-authority/30UN,Property Services,Energy Costs,2303,1/3/20 to 31/3/20,09/04/2020,0000454522,606.24,Revenue,Total Gas & power Ltd,132995
South Ribble Council,http://statistics.data.gov.uk/doc/local-authority/30UN,Property Services,Energy Costs,2307,CCL,09/04/2020,0000454522,28.29,Revenue,Total Gas & power Ltd,132995
South Ribble Council,http://statistics.data.gov.uk/doc/local-authority/30UN,Property Services,Energy Costs,2303,4/3/20 to 2/4/20,17/04/2020,0000455000,260.34,Revenue,Total Gas & power Ltd,132995
South Ribble Council,http://statistics.data.gov.uk/doc/local-authority/30UN,Property Services,Energy Costs,2307,CCL,17/04/2020,0000455000,13.14,Revenue,Total Gas & power Ltd,132995
South Ribble Council,http://statistics.data.gov.uk/doc/local-authority/30UN,Property Services,Energy Costs,2303,1/3/20 to 31/3/20,15/04/2020,0000455004,358.78,Revenue,Total Gas & power Ltd,132995
South Ribble Council,http://statistics.data.gov.uk/doc/local-authority/30UN,Property Services,Energy Costs,2307,CCL,15/04/2020,0000455004,18.76,Revenue,Total Gas & power Ltd,132995
South Ribble Council,http://statistics.data.gov.uk/doc/local-authority/30UN,Property Services,Energy Costs,2304,29/2/20 to 31/3/20,17/04/2020,0000455008,"1,881.69",Revenue,Total Gas & power Ltd,132995
South Ribble Council,http://statistics.data.gov.uk/doc/local-authority/30UN,Property Services,Energy Costs,2307,CCL,17/04/2020,0000455008,188.04,Revenue,Total Gas & power Ltd,132995
South Ribble Council,http://statistics.data.gov.uk/doc/local-authority/30UN,Housing,Cap Expend Other,C750,SUPPLY & INSTALL,09/04/2020,0000454004,"1,337.00",Revenue,TRADE WINDOWS & CONSERVATORIES,00119823
South Ribble Council,http://statistics.data.gov.uk/doc/local-authority/30UN,Housing,Cap Expend Other,C750,SUPPLY & INSTALL,09/04/2020,0000454005,"1,610.00",Revenue,TRADE WINDOWS & CONSERVATORIES,00119823
South Ribble Council,http://statistics.data.gov.uk/doc/local-authority/30UN,Housing,Cap Expend Other,C750,Remaining Winter Warmth scheme funding to supply and install UPVC double glazing as per tender specification for 2019/20  cost 12517.52,17/04/2020,0000454655,"2,702.00",Revenue,TRADE WINDOWS & CONSERVATORIES,00119823
South Ribble Council,http://statistics.data.gov.uk/doc/local-authority/30UN,Housing,Cap Expend Other,C750,Remaining Winter Warmth scheme funding to supply and install UPVC double glazing as per tender specification for 2019/20 cost 12517.52,17/04/2020,0000455277,650.00,Revenue,TRADE WINDOWS & CONSERVATORIES,00119823
South Ribble Council,http://statistics.data.gov.uk/doc/local-authority/30UN,Housing,Cap Expend Other,C750,Remaining Winter Warmth scheme funding to supply and install UPVC double glazing as per tender specification for 2019/20 cost 12517.52,22/04/2020,0000455519,332.67,Revenue,TRADE WINDOWS & CONSERVATORIES,00119823
South Ribble Council,http://statistics.data.gov.uk/doc/local-authority/30UN,Housing,Cap Expend Other,C750,Remaining Winter Warmth scheme funding to supply and install UPVC double glazing as per tender specification for 2019/20 cost 12517.52,22/04/2020,0000455522,436.00,Revenue,TRADE WINDOWS & CONSERVATORIES,00119823
South Ribble Council,http://statistics.data.gov.uk/doc/local-authority/30UN,Planning,Consultancy Fees,4541,Independent Viability Assessment Advice regarding former Gas Works Site - The Cawsey,09/04/2020,0000454523,"4,000.00",Revenue,Trebbi Continuum Limited,132970
South Ribble Council,http://statistics.data.gov.uk/doc/local-authority/30UN,Neighbourhood Admin & Support,External Contractors Charges,4570,Elite Standard Support Annual Hardware Support 1.6.20 - 31.5.21,15/04/2020,0000454975,843.42,Revenue,TRISCAN SYSTEMS LIMITED,00108339
South Ribble Council,http://statistics.data.gov.uk/doc/local-authority/30UN,Property Services,Rep & Maint Premises,2020,Annual Contract  for maintenance 2020 - 2021 contract number 05487 dated 10.3.2020 Moss Side Depot,09/04/2020,0000454227,242.40,Revenue,UNIVERSAL COOLING LTD,130914
South Ribble Council,http://statistics.data.gov.uk/doc/local-authority/30UN,Property Services,Rep & Maint Premises,2020,Annual maintenance Contract 20-21 Worden Park - under review as not currently in use - check with NAME REDACTED before doing service,09/04/2020,0000454227,242.40,Revenue,UNIVERSAL COOLING LTD,130914
South Ribble Council,http://statistics.data.gov.uk/doc/local-authority/30UN,Healthy Communities,External Contractors Charges,4575,Hot Meals @ 9.50 per head for 20 on 4th March at 4.30,07/04/2020,0000453958,190.00,Revenue,UNIVERSITY OF CENTRAL LANCASHIRE,131183
South Ribble Council,http://statistics.data.gov.uk/doc/local-authority/30UN,Healthy Communities,External Contractors Charges,4575,Hot meals with sweet @9.50 a head for 15 on 10th March at 4.30,07/04/2020,0000453958,142.50,Revenue,UNIVERSITY OF CENTRAL LANCASHIRE,131183
South Ribble Council,http://statistics.data.gov.uk/doc/local-authority/30UN,Healthy Communities,External Contractors Charges,4575,Cold buffet with sweet half veggie half meat @ 7 per head for 60 people on Saturday 7th March at 11.30,07/04/2020,0000453958,420.00,Revenue,UNIVERSITY OF CENTRAL LANCASHIRE,131183
South Ribble Council,http://statistics.data.gov.uk/doc/local-authority/30UN,Property Services,Operational Furniture & Equip,4012,2020 / 2021 annual contract for the monthly rental of hot drinks machines at the civic centre including environmental charge.,24/04/2020,0000454336,372.89,Revenue,VENDING ENTERPRISES,00101501
South Ribble Council,http://statistics.data.gov.uk/doc/local-authority/30UN,Property Services,Rep & Maint Premises,2020,"Annual Contract 2020/2021 for the sanitization of  water coolers x  7 machines at Civic Centre West Paddock Leyland, PR25 1DH",24/04/2020,0000454336,780.00,Revenue,VENDING ENTERPRISES,00101501
South Ribble Council,http://statistics.data.gov.uk/doc/local-authority/30UN,Property Services,Agency Fees,1121,Surveyor consultancy for the period 28 March 2020 - 30 June 2020.,07/04/2020,0000454304,"1,963.92",Revenue,Vivid Resourcing,132999
South Ribble Council,http://statistics.data.gov.uk/doc/local-authority/30UN,Property Services,Agency Fees,1121,Surveyor consultancy for the period 28 March 2020 - 30 June 2020.,15/04/2020,0000454965,"2,151.59",Revenue,Vivid Resourcing,132999
South Ribble Council,http://statistics.data.gov.uk/doc/local-authority/30UN,Property Services,Agency Fees,1121,Surveyor consultancy for the period 28 March 2020 - 30 June 2020.,29/04/2020,0000455521,"1,821.33",Revenue,Vivid Resourcing,132999
South Ribble Council,http://statistics.data.gov.uk/doc/local-authority/30UN,Property Services,Agency Fees,1121,Surveyor consultancy for the period 28 March 2020 - 30 June 2020.,29/04/2020,0000455861,"1,882.58",Revenue,Vivid Resourcing,132999
South Ribble Council,http://statistics.data.gov.uk/doc/local-authority/30UN,Information Services,Peripherals,4247,1st April 2020,03/04/2020,0000454003,"2,252.86",Revenue,VODAFONE RE:CABLE & WIRELESS UK,130810
South Ribble Council,http://statistics.data.gov.uk/doc/local-authority/30UN,Information Services,Peripherals,4247,April 2020,07/04/2020,0000454293,"2,404.20",Revenue,VODAFONE RE:CABLE & WIRELESS UK,130810
South Ribble Council,http://statistics.data.gov.uk/doc/local-authority/30UN,Information Services,Peripherals,4269,26 mar 20,07/04/2020,0000454323,774.43,Revenue,VODAFONE RE:CABLE & WIRELESS UK,130810
South Ribble Council,http://statistics.data.gov.uk/doc/local-authority/30UN,Property Services,Water Charges,2511,29/12/19 to 14/4//20,29/04/2020,0000455951,261.09,Revenue,WATER PLUS,00029845
South Ribble Council,http://statistics.data.gov.uk/doc/local-authority/30UN,Regeneration,Other Misc,4851,4000 x Longton Live Red Wristbands 4000 x Penwortham Live Orange Wristbands 1000 x SRBC Performers Black Wristbands,24/04/2020,0000455727,"1,350.00",Revenue,Webproducts Direct,132751
South Ribble Council,http://statistics.data.gov.uk/doc/local-authority/30UN,Revenues Plus,Postage,4291,Revenues April to September 2020,22/04/2020,0000455722,319.19,Revenue,WHISTL  UK LTD,131310
South Ribble Council,http://statistics.data.gov.uk/doc/local-authority/30UN,Information Services,Peripherals,4248,ProPrint annual maintenance & support 01/04/20 - 31/03/21,03/04/2020,0000454058,"2,559.00",Revenue,XLPRINT SOFTWARE,00119658
